2CCN - Level 2 Cost Centre Name,,9CCN - Level 9 Cost Centre Name,9CCC - Level 9 Cost Centre Code,9AN - Level 9 Account Name,9AC - Level 9 Account Code,Transaction Description,Date Paid,Transaction Reference,Analysed Amount,2AC - Level 2 Account Codes,Supplier Name,Supplier Code,,
Gloucester City Council,23UE,Aspire Admin Charges,LC105,Other Minor Income,9900,BAILIFF PAYMENTS 02/01/15,02/02/2015,397575,187.45,NET,Aspire Sports & Cultural Trust,08135V,,
Gloucester City Council,23UE,Aspire Admin Charges,LC105,Other Minor Income,9900,BAILIFF PAYMENTS 16/01/15,02/02/2015,397574,20,NET,Aspire Sports & Cultural Trust,08135V,,
Gloucester City Council,23UE,Blackfriars,LA609,Fees For Services Received,5350,STAND 25/01/15,02/02/2015,397564,175,NET,Bonehead Productions Ltd,15481G,,
Gloucester City Council,23UE,Blackfriars,LA609,Sale Of Goods And Services,9230,Renewal of wedding licence,02/02/2015,397576,2500,NET,Approved Premises Admin Team,15626E,,
Gloucester City Council,23UE,Blackfriars Catering,LA220,Catering Provisions -Liquor,5111,DRINK,02/02/2015,397319,94.39,NET,Cellar Supplies Cheltenham Ltd,01563L,,
Gloucester City Council,23UE,Business Transformation & Tech,RT700,Computer Hardware <5000,5420,HARDWARE,02/02/2015,397467,555.66,NET,Dell Computers Corporation Ltd,55920C,,
Gloucester City Council,23UE,Cems/Crems Admin,HC100,Security Services Fees,5351,Cash Processed December 2014,02/02/2015,397029,6.87,NET,G4s Cash Solutions (Uk) Ltd,04290V,,
Gloucester City Council,23UE,City Museum And Art Gallery,LM200,Publications For Sale,5064,GOODS FOR RESALE,02/02/2015,394943,267.56,NET,Melissa & Doug Llc,14199M,,
Gloucester City Council,23UE,City Museum Catering,LM202,Catering Provisions -Food,5110,COFFEE,02/02/2015,396781,84.25,NET,James Gourmet Coffee Co.,55049A,,
Gloucester City Council,23UE,Civic Admin And Hospitality,RC210,Hospitality,5122,BADGE,02/02/2015,397560,1475,NET,Thomas Fattorini Ltd,14975J,,
Gloucester City Council,23UE,Client Revs & Bens Contract,RT240,Bailiffs Fees,5368,CTAX,02/02/2015,397561,476.26,NET,Bristow & Sutor,05450M,,
Gloucester City Council,23UE,Client Revs & Bens Contract,RT240,Bailiffs Fees,5368,vat only invoice,02/02/2015,397559,0,NET,Bristow & Sutor,05450M,,
Gloucester City Council,23UE,Client Revs & Bens Contract,RT240,Bailiffs Fees,5368,VAT ONLY INVOICE,02/02/2015,397562,0,NET,Bristow & Sutor,05450M,,
Gloucester City Council,23UE,Client Revs & Bens Contract,RT240,Security Services Fees,5351,Cash Processed December 2014,02/02/2015,397029,3.43,NET,G4s Cash Solutions (Uk) Ltd,04290V,,
Gloucester City Council,23UE,Community Safety Projects,FP500,Other Minor Supplies Services,5590,MEMBERSHIP TO MAR 2016,02/02/2015,397242,235,NET,Ncsn Ltd,53042K,,
Gloucester City Council,23UE,Countryside Unit,LP201,Major R And M - Vehicles,4010,Repairs to Roller,02/02/2015,397326,171.57,NET,Commercial Mower Supplies,06799D,,
Gloucester City Council,23UE,Disabled Facilities Grants,CY013,Disabled Facility Grants,0074,Disabled facilities grant MDF5006,02/02/2015,397393,710.64,CAP,Davey's Building Maintenance,57010K,,
Gloucester City Council,23UE,Gloucester Guildhall,LA100,General Repair/Maint Buildings,3000,GUILDHALL,02/02/2015,397283,85,NET,Gloucester Locksmiths,18160C,,
Gloucester City Council,23UE,REDACTED,REDACTED,REDACTED,REDACTED,REDACTED,02/02/2015,REDACTED,100,NET,REDACTED,REDACTED,,
Gloucester City Council,23UE,REDACTED,REDACTED,REDACTED,REDACTED,REDACTED,02/02/2015,REDACTED,96.67,NET,REDACTED,REDACTED,,
Gloucester City Council,23UE,REDACTED,REDACTED,REDACTED,REDACTED,REDACTED,02/02/2015,REDACTED,300,NET,REDACTED,REDACTED,,
Gloucester City Council,23UE,REDACTED,REDACTED,REDACTED,REDACTED,REDACTED,02/02/2015,REDACTED,900,NET,REDACTED,REDACTED,,
Gloucester City Council,23UE,Homelessness,CH120,Board And Lodging,5515,Oct 2014 Homeless Voids,02/02/2015,397330,2607.02,NET,Gloucester City Homes,05244T,,
Gloucester City Council,23UE,REDACTED,REDACTED,REDACTED,REDACTED,REDACTED,02/02/2015,REDACTED,160,NET,REDACTED,REDACTED,,
Gloucester City Council,23UE,REDACTED,REDACTED,REDACTED,REDACTED,REDACTED,02/02/2015,REDACTED,40,NET,REDACTED,REDACTED,,
Gloucester City Council,23UE,Homelessness,CH120,Fees For Services Received,5350,Medical Report,02/02/2015,397331,20.5,NET,Gloucester Health Access Centre,11611H,,
Gloucester City Council,23UE,Homelessness,CH120,Removal And Storage Fees,5513,Storage Charges,02/02/2015,397309,39.11,NET,Advanced Removals & Storage Ltd,57142R,,
Gloucester City Council,23UE,Homelessness,CH120,Removal And Storage Fees,5513,Storage Charges,02/02/2015,397310,78.21,NET,Advanced Removals & Storage Ltd,57142R,,
Gloucester City Council,23UE,Homelessness,CH120,Removal And Storage Fees,5513,Storage Charges,02/02/2015,397308,276.07,NET,Advanced Removals & Storage Ltd,57142R,,
Gloucester City Council,23UE,Homelessness,CH120,Removal And Storage Fees,5513,Storage Charges,02/02/2015,397311,61.71,NET,Advanced Removals & Storage Ltd,57142R,,
Gloucester City Council,23UE,Homelessness,CH120,Removal And Storage Fees,5513,Storage Charges,02/02/2015,397313,117.32,NET,Advanced Removals & Storage Ltd,57142R,,
Gloucester City Council,23UE,Homelessness,CH120,Removal And Storage Fees,5513,Storage Charges,02/02/2015,397312,61.71,NET,Advanced Removals & Storage Ltd,57142R,,
Gloucester City Council,23UE,Homelessness Prevention,CH122,Basic Pay - Temporary Staff,2751,temporary staff,02/02/2015,397565,948.27,NET,Building Recruitment Company Ltd,55385E,,
Gloucester City Council,23UE,Human Resources,EH100,Fees For Services Received,5350,DEC 2014,02/02/2015,397563,390.83,NET,Industrial Medical & Safety Services Ltd,10668L,,
Gloucester City Council,23UE,Internal Audit,RT300,Basic Pay - Temporary Staff,2751,temporary staff,02/02/2015,397216,1032.5,NET,Robert Half Ltd,03959K,,
Gloucester City Council,23UE,Planning Policy,PT300,Fees For Services Received,5350,PLAYING PITCH STRATEGY,02/02/2015,397303,5400,NET,Knight Kavanagh & Page (Kkp),15044K,,
Gloucester City Council,23UE,Printing,RP103,Printing,5300,PRINTING,02/02/2015,397286,646,NET,Alpha Colour Printers Ltd,00945B,,
Gloucester City Council,23UE,Rehousing,CH111,Fees For Services Received,5350,Medical Report,02/02/2015,397332,25,NET,Kingsholm Surgery,11948S,,
Gloucester City Council,23UE,Tic Trading,LT110,Materials For Sale,5080,Merchandise,02/02/2015,397327,555.49,NET,B & M Leisure,14619L,,
Gloucester City Council,23UE,16 Commercial Road,RB539,Electricity Supply,3110,16 COMMERCIAL RD,03/02/2015,397555,26.99,NET,Sse,58445H,,
Gloucester City Council,23UE,REDACTED,REDACTED,REDACTED,REDACTED,REDACTED,03/02/2015,REDACTED,70,NET,REDACTED,REDACTED,,
Gloucester City Council,23UE,Business Transformation & Tech,RT700,Computer Consumables,5422,RESTORE,03/02/2015,397544,600,NET,Insurgo Media Services,14207R,,
Gloucester City Council,23UE,Business Transformation & Tech,RT700,Computer Network Maintenance,5443,DELL CHECK,03/02/2015,397302,1125,NET,Cristie Data Ltd,59868N,,
Gloucester City Council,23UE,Business Transformation & Tech,RT700,Subscriptions,5600,SUBS TO 03/16,03/02/2015,397264,440,NET,Hb Info Ltd,06605X,,
Gloucester City Council,23UE,Cemeteries,HC300,Maint Of Grounds - General,3030,Cherry Tree,03/02/2015,397328,39.99,NET,Highfield Garden Centres Ltd,48436C,,
Gloucester City Council,23UE,Cemeteries,HC300,Operational Materials,5070,FIRST AID KIT,03/02/2015,397301,62.85,NET,Safpro Industrial Supply Co,39190W,,
Gloucester City Council,23UE,City Museum And Art Gallery,LM200,Advertising And Publicity,5702,ADVERTS,03/02/2015,397557,88,NET,Clear Channel Uk Ltd*,59423U,,
Gloucester City Council,23UE,REDACTED,REDACTED,REDACTED,REDACTED,REDACTED,03/02/2015,REDACTED,70,NET,REDACTED,REDACTED,,
Gloucester City Council,23UE,Client Revs & Bens Contract,RT240,Bailiffs Fees,5368,CTAX,03/02/2015,396978,2.21,NET,Bristow & Sutor,05450M,,
Gloucester City Council,23UE,Client Revs & Bens Contract,RT240,Bailiffs Fees,5368,VAT on statutory fees,03/02/2015,396981,0,NET,Bristow & Sutor,05450M,,
Gloucester City Council,23UE,Client Revs & Bens Contract,RT240,Fees For Services Received,5350,VAT ONLY INVOICE,03/02/2015,396979,0,NET,Bristow & Sutor,05450M,,
Gloucester City Council,23UE,Community Strat & Engagement,FP100,Other Minor Supplies Services,5590,training course fees,03/02/2015,397548,150,NET,England Athletics,15020A,,
Gloucester City Council,23UE,Contact Centre,RB300,Basic Pay -Admin /Prof Staff,2601,temporary staff,03/02/2015,397522,180,NET,Hbhc Synergy Ltd,13363J,,
Gloucester City Council,23UE,Crematorium,HC200,Repair/Maint Of Fixed Plant,3006,CARBON REAGENT,03/02/2015,397287,1689.96,NET,Facultatieve Technologies Ltd,51210H,,
Gloucester City Council,23UE,Docks Complex - Catering Servs,RB110,Catering Provisions -Food,5110,FOOD,03/02/2015,397272,17.04,NET,Taynton Farm Foods,09653F,,
Gloucester City Council,23UE,Docks Complex - Telephones,RB120,Mobile Phones,5409,HARDWARE,03/02/2015,397300,266.09,NET,Rocom,56066R,,
Gloucester City Council,23UE,Docks Complex - Telephones,RB120,Mobile Phones,5409,PHONE,03/02/2015,397547,686,NET,Everything Everywhere Ltd (T-Mobile),02334V,,
Gloucester City Council,23UE,Environmental Planning,LM340,Operational Materials,5070,GREEN FARM ORCHARD,03/02/2015,397293,90,NET,Gloucestershire Wildlife Management,49628F,,
Gloucester City Council,23UE,Flooding And Drainage,HE306,Maint Of Grounds - General,3030,19 & 21 NOV 2014,03/02/2015,395986,500,NET,Tcv T/A The Conservation Volunteers,55897V,,
Gloucester City Council,23UE,Folk Museum,LM210,Publications For Sale,5064,GOODS FOR RESALE,03/02/2015,397282,211.11,NET,The Playwrite Group,06703W,,
Gloucester City Council,23UE,General Drainage Works,PY241,Contract Payments,0020,ST PETERS SCHOOL,03/02/2015,397297,8800,CAP,Rj Contracting (Environmental) Ltd,07429H,,
Gloucester City Council,23UE,General Works Fund,RY203,Capital General Repairs & Main,0013,ALARM SYSTEM,03/02/2015,397408,200,CAP,Micro-Vision Fire And Security Ltd,08581R,,
Gloucester City Council,23UE,Glos City Eaep,LM250,Fees For Services Received,5350,ARCHIVE ENHANCEMENT,03/02/2015,397543,5408,NET,Cotswold Archaeology Ltd,09180E,,
Gloucester City Council,23UE,Grants To Voluntary Sector,FG100,Members Allocation Fund,7100F,MORELANDS PROJECT,03/02/2015,397274,950,NET,Increase The Peace Project,08667D,,
Gloucester City Council,23UE,Guildhall Bar And Caf�,LA210,Catering Provisions -Food,5110,FOOD,03/02/2015,397558,89,NET,Woodward Foodservice,10714F,,
Gloucester City Council,23UE,REDACTED,REDACTED,REDACTED,REDACTED,REDACTED,03/02/2015,REDACTED,221.52,NET,REDACTED,REDACTED,,
Gloucester City Council,23UE,Guildhall Events,LA200,Advertising And Publicity,5702,JUMBO MATCHTIME,03/02/2015,397273,1290,NET,Elonex Sport,12045M,,
Gloucester City Council,23UE,REDACTED,REDACTED,REDACTED,REDACTED,REDACTED,03/02/2015,REDACTED,750,NET,REDACTED,REDACTED,,
Gloucester City Council,23UE,REDACTED,REDACTED,REDACTED,REDACTED,REDACTED,03/02/2015,REDACTED,50,NET,REDACTED,REDACTED,,
Gloucester City Council,23UE,REDACTED,REDACTED,REDACTED,REDACTED,REDACTED,03/02/2015,REDACTED,72,NET,REDACTED,REDACTED,,
Gloucester City Council,23UE,Hmo Licences,HE520,Operational Equipment <5000,5012,TRAINING,03/02/2015,397516,620,NET,Asset Trades And Training Association,15077U,,
Gloucester City Council,23UE,Homelessness,CH120,Fees For Services Received,5350,medical report,03/02/2015,397523,20.5,NET,Rosebank Health,03041E,,
Gloucester City Council,23UE,REDACTED,REDACTED,REDACTED,REDACTED,REDACTED,03/02/2015,REDACTED,484.6,NET,REDACTED,REDACTED,,
Gloucester City Council,23UE,REDACTED,REDACTED,REDACTED,REDACTED,REDACTED,03/02/2015,REDACTED,555,NET,REDACTED,REDACTED,,
Gloucester City Council,23UE,Housing Works In Default,HD500,Clearance And Cleansing Fees,5384,boiler inspection,03/02/2015,397440,50,NET,Snape Construction Ltd,40958T,,
Gloucester City Council,23UE,Housing Works In Default,HD500,Clearance And Cleansing Fees,5384,boiler inspection,03/02/2015,397439,50,NET,Snape Construction Ltd,40958T,,
Gloucester City Council,23UE,Inhouse Training,EH200,Vocational Training,2970,FAW Training,03/02/2015,397320,280,NET,Aspire Sports & Cultural Trust,08135V,,
Gloucester City Council,23UE,Investment Property,RB500,Lift Maintenance,3051,GL1,03/02/2015,397281,86.17,NET,Pickerings Europe Ltd*,58816U,,
Gloucester City Council,23UE,Kings Quarter,RY146,Contract Payments,0020,ADVERT 21/01/15,03/02/2015,397268,87.65,CAP,Local World Ltd,08556P,,
Gloucester City Council,23UE,Kings Quarter,RY146,Legal/Survey Fees -Land,0002,KINGS QTR,03/02/2015,397278,4500,CAP,Gva Grimley,56359W,,
Gloucester City Council,23UE,Pollution Control,HE300,Fees For Services Received,5350,TESTING KIT,03/02/2015,397262,111.4,NET,Gradko International Ltd,11063B,,
Gloucester City Council,23UE,Postal Services,RS120,Postages,5400,Post 19/12/14 - 15/01/15,03/02/2015,397334,1820.18,NET,Royal Mail S.Wales & South West,35830S,,
Gloucester City Council,23UE,Postal Services,RS120,Postages,5400,Response Plus Service Dec 14- Jan 15,03/02/2015,397433,81.37,NET,Royal Mail S.Wales & South West,35830S,,
Gloucester City Council,23UE,Stationery Services,RS150,Stationery,5302,STATIONERY,03/02/2015,397468,8.85,NET,Lyreco Uk Ltd,11746G,,
Gloucester City Council,23UE,Stationery Services,RS150,Stationery,5302,STATIONERY,03/02/2015,397469,52.54,NET,Lyreco Uk Ltd,11746G,,
Gloucester City Council,23UE,Training Schemes,ET100,Vocational Training,2970,TRAINEES,03/02/2015,397279,530,NET,The Gold Standard,56141C,,
Gloucester City Council,23UE,Aspire Admin Charges,LC105,Fees For Services Received,5350,December 2014 Staff Memberships,04/02/2015,397545,672,NET,Aspire Sports & Cultural Trust,08135V,,
Gloucester City Council,23UE,Aspire Admin Charges,LC105,Fees For Services Received,5350,November 2014 Staff Memberships,04/02/2015,396887,841,NET,Aspire Sports & Cultural Trust,08135V,,
Gloucester City Council,23UE,Aspire Admin Charges,LC105,Fees For Services Received,5350,October 2014 Staff Aspire memberships,04/02/2015,396888,899,NET,Aspire Sports & Cultural Trust,08135V,,
Gloucester City Council,23UE,Asset Management,RS300,Advertising And Publicity,5702,Property Jobs 17/01/2015,04/02/2015,397298,1682,NET,Estates Gazette,05367Z,,
Gloucester City Council,23UE,Asset Management,RS300,Basic Pay - Temporary Staff,2751,Consultancy Services Jan 15,04/02/2015,397669,4925,NET,Ardley Associates,09369F,,
Gloucester City Council,23UE,Building Control,PT400,Basic Pay - Temporary Staff,2751,temporary staff,04/02/2015,397288,1504.09,NET,The Oyster Partnership Limited,14900T,,
Gloucester City Council,23UE,Building Control,PT400,Basic Pay - Temporary Staff,2751,temporary staff,04/02/2015,397289,1645,NET,The Oyster Partnership Limited,14900T,,
Gloucester City Council,23UE,Building Control,PT400,Fees For Services Received,5350,Scan Files,04/02/2015,397665,3219.75,NET,Transmedia Technology Ltd,08635T,,
Gloucester City Council,23UE,Building Control,PT400,Subscriptions,5600,Building Control Law,04/02/2015,397668,326,NET,Lexis Nexis Ltd,01712U,,
Gloucester City Council,23UE,Business Support,PT250,Routine R And M - Vehicles,4011,Various Items,04/02/2015,397661,790.42,NET,123 Car & Commercial,07651E,,
Gloucester City Council,23UE,Cemeteries,HC300,Purch Vehicles/M. Plant <5000,4000,"Broom, Safety Helmet",04/02/2015,397677,67.65,NET,Spaldings,48759Y,,
Gloucester City Council,23UE,Cemeteries,HC300,"Seeds, Trees, Plants, Shrubs",3028,Various Items,04/02/2015,397659,80.39,NET,Spaldings,48759Y,,
Gloucester City Council,23UE,Civica Admin Charges,RT105,Postages,5400,Post 05/01 - 16/01 2015,04/02/2015,397333,1527.83,NET,Royal Mail S.Wales & South West,35830S,,
Gloucester City Council,23UE,Civica Contract Revs & Bens,RT250,Contracted Services,6970,Revenues & Benefits March 2015,04/02/2015,397672,138572.7,NET,Civica Uk Ltd,10841X,,
Gloucester City Council,23UE,Client Revs & Bens Contract,RT240,Bank Charges And Adjustments,5950,Probate Search,04/02/2015,397656,10,NET,Hm Courts & Tribunals Service,12497V,,
Gloucester City Council,23UE,Community Safety Projects,FP500,Basic Pay - Temporary Staff,2751,temporary staff,04/02/2015,397014,441.65,NET,Travail Employment Ltd,49371W,,
Gloucester City Council,23UE,Community Safety Projects,FP500,Basic Pay - Temporary Staff,2751,temporary staff,04/02/2015,396275,431.87,NET,Travail Employment Ltd,49371W,,
Gloucester City Council,23UE,Community Safety Projects,FP500,Basic Pay - Temporary Staff,2751,temporary staff,04/02/2015,397240,542.54,NET,Travail Employment Ltd,49371W,,
Gloucester City Council,23UE,Community Safety Projects,FP500,Basic Pay - Temporary Staff,2751,temporary staff,04/02/2015,397696,443.99,NET,Travail Employment Ltd,49371W,,
Gloucester City Council,23UE,Contact Centre,RB300,Printing,5300,Adverts,04/02/2015,397679,1032.66,NET,Bt Directories,10473E,,
Gloucester City Council,23UE,Contaminated Land,HE301,Basic Pay - Operational Staff,1001,LAND WORK DEC 2014,04/02/2015,397219,2167.2,NET,Bromsgrove District Council,15037G,,
Gloucester City Council,23UE,Council Streetcare Team,HI101,Fees For Services Received,5350,"Application Fee, Barnwood Park",04/02/2015,397685,363,NET,Keep Britain Tidy,10053H,,
Gloucester City Council,23UE,Council Streetcare Team,HI101,Fees For Services Received,5350,"Application Fee, Robinswood Hill",04/02/2015,397687,363,NET,Keep Britain Tidy,10053H,,
Gloucester City Council,23UE,Council Streetcare Team,HI101,Fees For Services Received,5350,"Application Fee, Saintbridge Pond",04/02/2015,397686,363,NET,Keep Britain Tidy,10053H,,
Gloucester City Council,23UE,Council Streetcare Team,HI101,Other Minor Supplies Services,5590,Padlocks,04/02/2015,397660,189.5,NET,London Tools Ltd,13538X,,
Gloucester City Council,23UE,Crematorium,HC200,Fees For Services Received,5350,Fees January 2015,04/02/2015,397705,1681.52,NET,Dr D Martin,00890P,,
Gloucester City Council,23UE,Crematorium,HC200,Fees For Services Received,5350,Fees January 2015,04/02/2015,397704,1249.52,NET,Dr C M Stretton,00306P,,
Gloucester City Council,23UE,Crematorium,HC200,Fees For Services Received,5350,Fees January 2015,04/02/2015,397706,802.88,NET,Dr R W Bell,01571P,,
Gloucester City Council,23UE,Development Management,PT200,Advertising And Publicity,5702,Planning Jobsite,04/02/2015,396991,1285,NET,Haymarket Business Media,00795W,,
Gloucester City Council,23UE,REDACTED,REDACTED,REDACTED,REDACTED,REDACTED,04/02/2015,REDACTED,172,NET,REDACTED,REDACTED,,
Gloucester City Council,23UE,REDACTED,REDACTED,REDACTED,REDACTED,REDACTED,04/02/2015,REDACTED,385,NET,REDACTED,REDACTED,,
Gloucester City Council,23UE,Disabled Facilities Grants,CY013,Disabled Facility Grants,0074,Disabled facilities grant MDF5129,04/02/2015,397702,2972.44,CAP,Gloucester Locksmiths,18160C,,
Gloucester City Council,23UE,Docks Complex - Services,RB100,Cleaning Materials,3600,CLEANING GOODS,04/02/2015,397456,107.57,NET,Core Hygiene Ltd,03885P,,
Gloucester City Council,23UE,Emergency Out Of Hours Calls,RB301,Fees For Services Received,5350,FEB 2015,04/02/2015,397551,226.69,NET,Office Response,09439K,,
Gloucester City Council,23UE,Financial Services,RT200,Fees For Services Received,5350,Carriage Charges,04/02/2015,397662,5,NET,Communisis,04200Z,,
Gloucester City Council,23UE,Food Safety,HE100,Vocational Training,2970,RISK RATING COURSE 20/01/15,04/02/2015,397546,42,NET,Cotswold District Council,49331J,,
Gloucester City Council,23UE,Housing Works In Default,HD500,Clearance And Cleansing Fees,5384,ground clearance works,04/02/2015,397664,2000,NET,Rj Contracting (Environmental) Ltd,07429H,,
Gloucester City Council,23UE,Investment Property,RB500,Lift Maintenance,3051,STANNAH LIFT SERVICES LTD,04/02/2015,395757,187.51,NET,Stannah Lift Services Ltd,41700C,,
Gloucester City Council,23UE,Investment Property,RB500,Lift Maintenance,3051,Work 07/01/2015,04/02/2015,397692,766.56,NET,Pickerings Europe Ltd*,58816U,,
Gloucester City Council,23UE,Legal Services,RS200,Basic Pay - Temporary Staff,2751,temporary staff,04/02/2015,397265,980,NET,Michael Page International Recruitment Ltd,06601P,,
Gloucester City Council,23UE,Legal Services,RS200,Basic Pay - Temporary Staff,2751,temporary staff,04/02/2015,397237,1549.93,NET,Venn Group Ltd,04339P,,
Gloucester City Council,23UE,REDACTED,REDACTED,REDACTED,REDACTED,REDACTED,04/02/2015,REDACTED,21,NET,REDACTED,REDACTED,,
Gloucester City Council,23UE,Members Support,RC300,Members Training,5535,conference fees,04/02/2015,397539,150,NET,Improvement & Development Agency,55793J,,
Gloucester City Council,23UE,Nms Contract,HI102,Contracted Services,6970,Pension Recharge December 2014,04/02/2015,397698,11171.84,NET,Enterprise (Aol) Ltd,06695G,,
Gloucester City Council,23UE,Off Street Car Parks,PP110,Contracted Services,6970,4TH QTR 2014/165,04/02/2015,396948,1459.15,NET,Patrol,09431C,,
Gloucester City Council,23UE,Solace Project,FP843,Other Minor Supplies Services,5590,ASB January 2015,04/02/2015,397658,3250,NET,Gloucester City Homes,05244T,,
Gloucester City Council,23UE,Stationery Services,RS150,Stationery,5302,Paper,04/02/2015,397676,519.7,NET,Premier Paper Group Ltd,09166Y,,
Gloucester City Council,23UE,Superbreak,LT104,Materials For Sale,5080,REDACTED,04/02/2015,396965,50,NET,Superbreak Mini Holidays,00712D,,
Gloucester City Council,23UE,Superbreak,LT104,Sale Of Goods And Services,9230,REDACTED,04/02/2015,396965,-4.17,NET,Superbreak Mini Holidays,00712D,,
Gloucester City Council,23UE,The Arbor,HC501,Catering Provisions -Food,5110,food,04/02/2015,396020,228.84,NET,Janes Pantry,24500W,,
Gloucester City Council,23UE,The Arbor,HC501,Catering Provisions -Food,5110,FOOD,04/02/2015,397428,206.78,NET,Janes Pantry,24500W,,
Gloucester City Council,23UE,The Arbor,HC501,Catering Provisions -Food,5110,FOOD - ARBOR,04/02/2015,396036,67.5,NET,Janes Pantry,24500W,,
Gloucester City Council,23UE,The Arbor,HC501,Cleaning Materials,3600,Monthly Service for Disposal Units,04/02/2015,393618,33.56,NET,Minster Cleaning Services,02158R,,
Gloucester City Council,23UE,The Arbor,HC501,Cleaning Materials,3600,sanitary disposal,04/02/2015,395425,34.56,NET,Minster Cleaning Services,02158R,,
Gloucester City Council,23UE,Vehicles,RS140,Fuel,4012,FUEL,04/02/2015,397552,87.93,NET,Allstar Business Solutions Ltd (Arval),06594A,,
Gloucester City Council,23UE,Vehicles,RS140,Routine R And M - Vehicles,4011,Fleetwide 4,04/02/2015,397678,90,NET,Automobile Association,58743W,,
Gloucester City Council,23UE,REDACTED,REDACTED,REDACTED,REDACTED,REDACTED,05/02/2015,REDACTED,3000,NET,REDACTED,REDACTED,,
Gloucester City Council,23UE,Contact Centre,RB300,Basic Pay -Admin /Prof Staff,2601,temporary staff,05/02/2015,397736,360,NET,Hbhc Synergy Ltd,13363J,,
Gloucester City Council,23UE,Docks Complex - Services,RB100,Cleaning Materials,3600,Cleaning Materials,05/02/2015,397708,60.45,NET,Core Hygiene Ltd,03885P,,
Gloucester City Council,23UE,Docks Complex - Services,RB100,Cleaning Materials,3600,Cleaning Materials,05/02/2015,397709,22.6,NET,Core Hygiene Ltd,03885P,,
Gloucester City Council,23UE,Electrical Investigatory Works,RY142,Contract Payments,0020,Removal of Asbestos,05/02/2015,392516,11895,CAP,Hereford Asbestos Services Ltd,14938R,,
Gloucester City Council,23UE,Food Safety,HE100,Fees For Services Received,5350,Laundry,05/02/2015,397738,15,NET,Iron Maidens,02180Y,,
Gloucester City Council,23UE,Food Safety,HE100,Fees For Services Received,5350,Translation Service,05/02/2015,397715,350,NET,REDACTED,REDACTED,,
Gloucester City Council,23UE,Food Safety,HE100,Fees For Services Received,5350,Translation Service 01/05/2014,05/02/2015,397717,40,NET,REDACTED,REDACTED,,
Gloucester City Council,23UE,Food Safety,HE100,Fees For Services Received,5350,Translation Service 12/06/2014,05/02/2015,397716,40,NET,REDACTED,REDACTED,,
Gloucester City Council,23UE,General Drainage Works,PY241,Contract Payments,0020,TEWKESBURY RD,05/02/2015,397521,5130,CAP,Three Counties Drain Service,44033V,,
Gloucester City Council,23UE,Guildhall Bar And Caf�,LA210,Catering Provisions -Food,5110,Food w/e 01/02/2015,05/02/2015,397724,40.9,NET,Janes Pantry,24500W,,
Gloucester City Council,23UE,REDACTED,REDACTED,REDACTED,REDACTED,REDACTED,05/02/2015,REDACTED,150,NET,REDACTED,REDACTED,,
Gloucester City Council,23UE,REDACTED,REDACTED,REDACTED,REDACTED,REDACTED,05/02/2015,REDACTED,450,NET,REDACTED,REDACTED,,
Gloucester City Council,23UE,REDACTED,REDACTED,REDACTED,REDACTED,REDACTED,05/02/2015,REDACTED,500,NET,REDACTED,REDACTED,,
Gloucester City Council,23UE,REDACTED,REDACTED,REDACTED,REDACTED,REDACTED,05/02/2015,REDACTED,50,NET,REDACTED,REDACTED,,
Gloucester City Council,23UE,REDACTED,REDACTED,REDACTED,REDACTED,REDACTED,05/02/2015,REDACTED,600,NET,REDACTED,REDACTED,,
Gloucester City Council,23UE,REDACTED,REDACTED,REDACTED,REDACTED,REDACTED,05/02/2015,REDACTED,375,NET,REDACTED,REDACTED,,
Gloucester City Council,23UE,REDACTED,REDACTED,REDACTED,REDACTED,REDACTED,05/02/2015,REDACTED,300,NET,REDACTED,REDACTED,,
Gloucester City Council,23UE,REDACTED,REDACTED,REDACTED,REDACTED,REDACTED,05/02/2015,REDACTED,1950,NET,REDACTED,REDACTED,,
Gloucester City Council,23UE,REDACTED,REDACTED,REDACTED,REDACTED,REDACTED,05/02/2015,REDACTED,300,NET,REDACTED,REDACTED,,
Gloucester City Council,23UE,REDACTED,REDACTED,REDACTED,REDACTED,REDACTED,05/02/2015,REDACTED,470,NET,REDACTED,REDACTED,,
Gloucester City Council,23UE,Homelessness,CH120,Rent In Advance,5516,RIA & Deposit,05/02/2015,397790,364.6,NET,REDACTED,REDACTED,,
Gloucester City Council,23UE,Homelessness Prevention,CH122,Fees For Services Received,5350,RIA & Deposit,05/02/2015,397790,425,NET,REDACTED,REDACTED,,
Gloucester City Council,23UE,REDACTED,REDACTED,REDACTED,REDACTED,REDACTED,05/02/2015,REDACTED,550,NET,REDACTED,REDACTED,,
Gloucester City Council,23UE,Off Street Car Parks,PP110,Fees For Services Received,5350,AIRTIME FEB 2015,05/02/2015,397437,420.82,NET,Parkeon Ltd,03238G,,
Gloucester City Council,23UE,Parks Contract Management,LP100,Maint Of Grounds - General,3030,"Randwick Park, stepping stone",05/02/2015,397691,40,NET,Greenfields Garden Services Ltd,48130G,,
Gloucester City Council,23UE,Printing,RP103,Printing,5300,Printing January 2015,05/02/2015,397674,2239,NET,Alpha Colour Printers Ltd,00945B,,
Gloucester City Council,23UE,Retail Market - Landlord,HM300,General Repair/Maint Buildings,3000,29/12/2014 Engineers,05/02/2015,397474,212,NET,Airvent Systems Limited,51073T,,
Gloucester City Council,23UE,Retail Market - Landlord,HM300,Trade Refuse Collection,3630,Waste January 2015,05/02/2015,397725,120,NET,B & S Pointon Ltd,06253G,,
Gloucester City Council,23UE,Tree Planting Grant Funded,LY150,Contract Payments,0020,CARNE PLACE,05/02/2015,397270,552,CAP,Greenfields Garden Services Ltd,48130G,,
Gloucester City Council,23UE,Tree Planting Grant Funded,LY150,Contract Payments,0020,SCOTT AVE,05/02/2015,397284,1116,CAP,Greenfields Garden Services Ltd,48130G,,
Gloucester City Council,23UE,Aspire Admin Charges,LC105,Contracted Services,6970,Monthly Charge January 2015,06/02/2015,397005,71458.92,NET,Aspire Sports & Cultural Trust,08135V,,
Gloucester City Council,23UE,Business Transformation & Tech,RT700,Computer Hardware <5000,5420,Integral 4GB USB,06/02/2015,397697,46.5,NET,Qual Technology,56512N,,
Gloucester City Council,23UE,Countryside Unit,LP201,Maint Of Grounds - General,3030,BENCHES,06/02/2015,397438,652.5,NET,Streetmaster Products,00534D,,
Gloucester City Council,23UE,Development Management,PT200,Advertising And Publicity,5702,ADVERT 15/01/15,06/02/2015,396949,379.81,NET,Local World Ltd,08556P,,
Gloucester City Council,23UE,Development Management,PT200,Advertising And Publicity,5702,ADVERT 22/01/15,06/02/2015,397269,204.51,NET,Local World Ltd,08556P,,
Gloucester City Council,23UE,Disabled Facilities Grants,CY013,Disabled Facility Grants,0074,Disabled Facilities Grant MDF5032,06/02/2015,397817,4207.91,CAP,Mears Home Improvement Ltd,00096G,,
Gloucester City Council,23UE,Docks Complex - Services,RB100,General Repair/Maint Buildings,3000,5 Asbestos Samples,06/02/2015,397743,215,NET,Gloucester Asbestos Ltd,00496K,,
Gloucester City Council,23UE,Homelessness,CH120,Board And Lodging,5515,accommodation,06/02/2015,397823,493.2,NET,Carbrey Housing Ltd,11098G,,
Gloucester City Council,23UE,Homelessness,CH120,Board And Lodging,5515,accommodation,06/02/2015,397825,389.71,NET,Carbrey Housing Ltd,11098G,,
Gloucester City Council,23UE,Homelessness,CH120,Board And Lodging,5515,accommodation,06/02/2015,397826,532.6,NET,Kalmwood Ltd,08568G,,
Gloucester City Council,23UE,Homelessness,CH120,Board And Lodging,5515,VARIOUS TENANTS,06/02/2015,397820,1486.03,NET,James Legge Property (Ltd),07844R,,
Gloucester City Council,23UE,Homelessness,CH120,Board And Lodging,5515,VARIOUS TENANTS,06/02/2015,397827,806.01,NET,Dorchester House Trust,12298D,,
Gloucester City Council,23UE,Homelessness,CH120,Board And Lodging,5515,VARIOUS TENANTS,06/02/2015,397828,1250.84,NET,Carbrey Housing Ltd,11098G,,
Gloucester City Council,23UE,REDACTED,REDACTED,REDACTED,REDACTED,REDACTED,06/02/2015,REDACTED,93.31,NET,REDACTED,REDACTED,,
Gloucester City Council,23UE,REDACTED,REDACTED,REDACTED,REDACTED,REDACTED,06/02/2015,REDACTED,490.1,NET,REDACTED,REDACTED,,
Gloucester City Council,23UE,REDACTED,REDACTED,REDACTED,REDACTED,REDACTED,06/02/2015,REDACTED,3762.43,NET,REDACTED,REDACTED,,
Gloucester City Council,23UE,REDACTED,REDACTED,REDACTED,REDACTED,REDACTED,06/02/2015,REDACTED,400,NET,REDACTED,REDACTED,,
Gloucester City Council,23UE,REDACTED,REDACTED,REDACTED,REDACTED,REDACTED,06/02/2015,REDACTED,582.68,NET,REDACTED,REDACTED,,
Gloucester City Council,23UE,REDACTED,REDACTED,REDACTED,REDACTED,REDACTED,06/02/2015,REDACTED,555,NET,REDACTED,REDACTED,,
Gloucester City Council,23UE,REDACTED,REDACTED,REDACTED,REDACTED,REDACTED,06/02/2015,REDACTED,630,NET,REDACTED,REDACTED,,
Gloucester City Council,23UE,Legal Services,RS200,Basic Pay - Temporary Staff,2751,temporary staff,06/02/2015,396678,950.69,NET,Venn Group Ltd,04339P,,
Gloucester City Council,23UE,REDACTED,REDACTED,REDACTED,REDACTED,REDACTED,06/02/2015,REDACTED,21,NET,REDACTED,REDACTED,,
Gloucester City Council,23UE,National Express,LT105,Materials For Sale,5080,January 2015,06/02/2015,397739,8950.9,NET,National Express Ltd,31455K,,
Gloucester City Council,23UE,National Express,LT105,Sale Of Goods And Services,9230,January 2015,06/02/2015,397739,-875.76,NET,National Express Ltd,31455K,,
Gloucester City Council,23UE,Play Area Refurbishment,LY071,Contract Payments,0020,Glevum Way Play Area,06/02/2015,397690,23750,CAP,Greenfields Garden Services Ltd,48130G,,
Gloucester City Council,23UE,Retail Market - Landlord,HM300,Cleaning Materials,3600,cleaning goods,06/02/2015,396959,56.91,NET,Yate Supplies,12850B,,
Gloucester City Council,23UE,Retail Market - Landlord,HM300,Cleaning Materials,3600,CLEANING GOODS,06/02/2015,397532,82.54,NET,Yate Supplies,12850B,,
Gloucester City Council,23UE,Retail Market - Landlord,HM300,Operational Equipment <5000,5012,LAMPS,06/02/2015,397230,111.42,NET,City Electrical Factors,09325C,,
Gloucester City Council,23UE,Retail Market - Landlord,HM300,Operational Equipment <5000,5012,Various Items,06/02/2015,397726,35.04,NET,City Electrical Factors,09325C,,
Gloucester City Council,23UE,Retail Market - Landlord,HM300,Operational Equipment <5000,5012,Various Items,06/02/2015,397727,6.93,NET,City Electrical Factors,09325C,,
Gloucester City Council,23UE,Advance City Attractions,LT109,Materials For Sale,5080,"Ticket Sales, August- December 2014",09/02/2015,397872,22,NET,International Centre For Birds Of Prey,10625F,,
Gloucester City Council,23UE,Advance City Attractions,LT109,Sale Of Goods And Services,9230,"Ticket Sales, August- December 2014",09/02/2015,397872,-1.83,NET,International Centre For Birds Of Prey,10625F,,
Gloucester City Council,23UE,Aspire Admin Charges,LC105,Other Minor Income,9900,BAILIFF PAYMENTS 23/01/15,09/02/2015,397897,175.6,NET,Aspire Sports & Cultural Trust,08135V,,
Gloucester City Council,23UE,REDACTED,REDACTED,REDACTED,REDACTED,REDACTED,09/02/2015,REDACTED,17,NET,REDACTED,REDACTED,,
Gloucester City Council,23UE,REDACTED,REDACTED,REDACTED,REDACTED,REDACTED,09/02/2015,REDACTED,25.5,NET,REDACTED,REDACTED,,
Gloucester City Council,23UE,Celebratory Lights,LT302,Christmas Lights,5024,CHRISTMAS TREES,09/02/2015,397845,2330,NET,Real Christmas Trees Ltd,11015G,,
Gloucester City Council,23UE,City Museum And Art Gallery,LM200,Publications For Sale,5064,Folk Museum: book,09/02/2015,381486,552.18,NET,The History Press Ltd,07144D,,
Gloucester City Council,23UE,Client Revs & Bens Contract,RT240,Fees For Services Received,5350,Bailiff fees,09/02/2015,397863,49.5,NET,Assevarate Ltd,11749A,,
Gloucester City Council,23UE,Client Revs & Bens Contract,RT240,Fees For Services Received,5350,Bailiff fees,09/02/2015,397862,49.5,NET,Assevarate Ltd,11749A,,
Gloucester City Council,23UE,Client Revs & Bens Contract,RT240,Fees For Services Received,5350,Bailiff fees,09/02/2015,397865,49.5,NET,Assevarate Ltd,11749A,,
Gloucester City Council,23UE,Client Revs & Bens Contract,RT240,Fees For Services Received,5350,Bailiff fees,09/02/2015,397866,99,NET,Assevarate Ltd,11749A,,
Gloucester City Council,23UE,Docks Complex - Castlemeads Cp,RB210,Contracted Services,6970,PARKING,09/02/2015,397837,3701.46,NET,Apcoa Parking (Uk) Ltd,09954M,,
Gloucester City Council,23UE,Docks Complex - Telephones,RB120,Telephones And Fax,5410,Rental Charges 14/15,09/02/2015,392595,10,NET,Virgin Media Business,01869B,,
Gloucester City Council,23UE,Financial Services,RT200,Consultants Fees,5349,CONSULTANT JAN 2015,09/02/2015,397831,850,NET,Advanced Business Solutions,06072N,,
Gloucester City Council,23UE,Gf Lifelinks,CH180,Contracted Services,6970,January 2015 Management Fee,09/02/2015,397730,5270.83,NET,Gloucester City Homes,05244T,,
Gloucester City Council,23UE,Group Mgr Cult Ser & Tourism,GR102,Consultants Fees,5349,Consultancy Services Jan 2015,09/02/2015,397912,962.5,NET,Michael & Partners Limited,15101Z,,
Gloucester City Council,23UE,REDACTED,REDACTED,REDACTED,REDACTED,REDACTED,09/02/2015,REDACTED,21.58,NET,REDACTED,REDACTED,,
Gloucester City Council,23UE,REDACTED,REDACTED,REDACTED,REDACTED,REDACTED,09/02/2015,REDACTED,26.69,NET,REDACTED,REDACTED,,
Gloucester City Council,23UE,REDACTED,REDACTED,REDACTED,REDACTED,REDACTED,09/02/2015,REDACTED,100,NET,REDACTED,REDACTED,,
Gloucester City Council,23UE,REDACTED,REDACTED,REDACTED,REDACTED,REDACTED,09/02/2015,REDACTED,70,NET,REDACTED,REDACTED,,
Gloucester City Council,23UE,REDACTED,REDACTED,REDACTED,REDACTED,REDACTED,09/02/2015,REDACTED,484.6,NET,REDACTED,REDACTED,,
Gloucester City Council,23UE,Homelessness Prevention,CH122,Basic Pay - Temporary Staff,2751,temporary staff,09/02/2015,397848,765.54,NET,Building Recruitment Company Ltd,55385E,,
Gloucester City Council,23UE,REDACTED,REDACTED,REDACTED,REDACTED,REDACTED,09/02/2015,REDACTED,525,NET,REDACTED,REDACTED,,
Gloucester City Council,23UE,Investment Property,RB500,Fees For Services Received,5350,Agency Fee,09/02/2015,397928,350,NET,Alder King*,02367D,,
Gloucester City Council,23UE,Investment Property,RB500,Fire Alarm Maintenance,3053,service 18/12/14,09/02/2015,397015,365,NET,Adt Fire & Security Plc,54086D,,
Gloucester City Council,23UE,Investment Property,RB500,General Repair/Maint Buildings,3000,Repairs to garage door,09/02/2015,397666,280,NET,Pro Door Ltd,04760C,,
Gloucester City Council,23UE,Investment Property,RB500,Lift Maintenance,3051,BENTINCK HOUSE,09/02/2015,397833,46.88,NET,Pickerings Europe Ltd*,58816U,,
Gloucester City Council,23UE,Nms Contract,HI102,Additional Non-Tender Items,6973,Mini Bank Labels,09/02/2015,397925,150,NET,Eurolabel,10252Z,,
Gloucester City Council,23UE,Northwarehouse,RB150,Lift Maintenance,3051,Lift Inspection,09/02/2015,396192,670.19,NET,Schindler Ltd,06826C,,
Gloucester City Council,23UE,Off Street Car Parks,PP110,Contracted Services,6970,PARKING,09/02/2015,397836,773.48,NET,Apcoa Parking (Uk) Ltd,09954M,,
Gloucester City Council,23UE,Off Street Car Parks,PP110,Contracted Services,6970,PARKING,09/02/2015,397837,582.72,NET,Apcoa Parking (Uk) Ltd,09954M,,
Gloucester City Council,23UE,Off Street Car Parks,PP110,Contracted Services,6970,PARKING,09/02/2015,397838,12533.84,NET,Apcoa Parking (Uk) Ltd,09954M,,
Gloucester City Council,23UE,Off Street Car Parks,PP110,Contracted Services,6970,PARKING,09/02/2015,397839,437.08,NET,Apcoa Parking (Uk) Ltd,09954M,,
Gloucester City Council,23UE,Off Street Car Parks,PP110,Contracted Services,6970,PARKING,09/02/2015,397840,2030.03,NET,Apcoa Parking (Uk) Ltd,09954M,,
Gloucester City Council,23UE,Off Street Car Parks,PP110,Redundancy Payments,2910,PARKING,09/02/2015,397837,943.26,NET,Apcoa Parking (Uk) Ltd,09954M,,
Gloucester City Council,23UE,Postal Services,RS120,Postages,5400,ACCT 0252446000 W/E 29/01/15,09/02/2015,397850,1223.04,NET,Royal Mail S.Wales & South West,35830S,,
Gloucester City Council,23UE,Ranger Centre/Netheridge Wks,RY167,Contract Payments,0020,Release of Retention,09/02/2015,397737,2122.46,CAP,Snape Construction Ltd,40958T,,
Gloucester City Council,23UE,Registration Of Electors,RS400,Fees For Services Received,5350,Storage Polling Booths Dec 2014,09/02/2015,396451,235,NET,Armstrong Removals,04632N,,
Gloucester City Council,23UE,Registration Of Electors,RS400,Postages,5400,IER Mailings January 2015,09/02/2015,397927,1559.64,NET,Royal Mail S.Wales & South West,35830S,,
Gloucester City Council,23UE,Registration Of Electors,RS400,Printing,5300,HIF MAILING,09/02/2015,397855,3453,NET,Alpha Response Print & Mail Ltd,03029U,,
Gloucester City Council,23UE,Safe At Home Grants,CY012,Other Capital Grants,0089,SAFE AT HOME,09/02/2015,397844,4934,CAP,Gloucestershire County Council,18650D,,
Gloucester City Council,23UE,Safer Stronger Communities,FP841,Other Minor Supplies Services,5590,ROOM HIRE 21/03/15,09/02/2015,397860,110,NET,Garas,57701Y,,
Gloucester City Council,23UE,Shopmobility,PE200,Cleaning Materials,3600,Medical Waste Service,09/02/2015,397684,7.11,NET,Ocs Group Uk Limited T/A Cannon,06506A,,
Gloucester City Council,23UE,Stationery Services,RS150,Printing,5300,STATIONERY,09/02/2015,397871,14.98,NET,Lyreco Uk Ltd,11746G,,
Gloucester City Council,23UE,Stationery Services,RS150,Stationery,5302,STATIONERY,09/02/2015,397870,56.74,NET,Lyreco Uk Ltd,11746G,,
Gloucester City Council,23UE,The Arbor,HC501,Catering Provisions -Liquor,5111,DRINK,09/02/2015,397407,53.43,NET,Cellar Supplies Cheltenham Ltd,01563L,,
Gloucester City Council,23UE,The Arbor,HC501,Cleaning Materials,3600,FOOD,09/02/2015,397448,101.66,NET,3663,55585U,,
Gloucester City Council,23UE,The Arbor,HC501,Cleaning Materials,3600,FOOD,09/02/2015,397449,80.75,NET,3663,55585U,,
Gloucester City Council,23UE,Tic Trading,LT110,Publications For Sale,5064,BOOKS,09/02/2015,397841,703.89,NET,David Whyman Map Sales,02653Z,,
Gloucester City Council,23UE,Tourism Marketing,LT100,Window Cleaning,3610,DEC 2014,09/02/2015,397843,24,NET,Interserve Fs (Uk) Limited,00442K,,
Gloucester City Council,23UE,Treasury Management,VR110,Brokerage Fees,5951,BROKERS FEES,09/02/2015,397857,1071.24,NET,Tradition (Uk) Ltd,59084J,,
Gloucester City Council,23UE,Vehicles,RS140,Fuel,4012,FUEL,09/02/2015,397868,431.08,NET,Allstar Business Solutions Ltd (Arval),06594A,,
Gloucester City Council,23UE,Aspire Admin Charges,LC105,Fees For Services Received,5350,Call Out Charge 02/01/2015,10/02/2015,396424,239,NET,Danwood Group Limited,09555G,,
Gloucester City Council,23UE,Building Control,PT400,Basic Pay - Temporary Staff,2751,temporary staff,10/02/2015,397847,1522.24,NET,The Oyster Partnership Limited,14900T,,
Gloucester City Council,23UE,Building Control,PT400,Basic Pay - Temporary Staff,2751,temporary staff,10/02/2015,397846,1584.8,NET,The Oyster Partnership Limited,14900T,,
Gloucester City Council,23UE,Cemeteries,HC300,Basic Pay - Temporary Staff,2751,Grass Cutter January 2015,10/02/2015,397729,2200.64,NET,Anderson Recruitment Ltd,14646H,,
Gloucester City Council,23UE,Civic Admin And Hospitality,RC210,Printing,5300,Christmas Cards,10/02/2015,397915,204,NET,Smart Communications (Sw) Ltd,12287J,,
Gloucester City Council,23UE,REDACTED,REDACTED,REDACTED,REDACTED,REDACTED,10/02/2015,REDACTED,52.3,NET,REDACTED,REDACTED,,
Gloucester City Council,23UE,Crematorium,HC200,Oper Leases - Equipment,5029,Church Candle,10/02/2015,397688,54.4,NET,The Candlelight Company,10270X,,
Gloucester City Council,23UE,Flooding And Drainage,HE306,Maint Of Grounds - General,3030,LAMPREYS CLEARANCE WORKS,10/02/2015,396037,60,NET,Rdb Safety Boat Ltd,13507J,,
Gloucester City Council,23UE,General Drainage Works,PY241,Contract Payments,0020,Installation of Drainage System,10/02/2015,397930,5000,CAP,Guardian Preservation Services Llp,15497R,,
Gloucester City Council,23UE,Guildhall Cinema,LA202,Advertising And Publicity,5702,CARDS,10/02/2015,397226,70,NET,Paddock Print,03014H,,
Gloucester City Council,23UE,REDACTED,REDACTED,REDACTED,REDACTED,REDACTED,10/02/2015,REDACTED,24.62,NET,REDACTED,REDACTED,,
Gloucester City Council,23UE,REDACTED,REDACTED,REDACTED,REDACTED,REDACTED,10/02/2015,REDACTED,90,NET,REDACTED,REDACTED,,
Gloucester City Council,23UE,REDACTED,REDACTED,REDACTED,REDACTED,REDACTED,10/02/2015,REDACTED,90,NET,REDACTED,REDACTED,,
Gloucester City Council,23UE,REDACTED,REDACTED,REDACTED,REDACTED,REDACTED,10/02/2015,REDACTED,0,NET,REDACTED,REDACTED,,
Gloucester City Council,23UE,REDACTED,REDACTED,REDACTED,REDACTED,REDACTED,10/02/2015,REDACTED,150,NET,REDACTED,REDACTED,,
Gloucester City Council,23UE,REDACTED,REDACTED,REDACTED,REDACTED,REDACTED,10/02/2015,REDACTED,780,NET,REDACTED,REDACTED,,
Gloucester City Council,23UE,Swrda Asset Transfer,RY184,Capital General Repairs & Main,0013,BARBICAN CAR PARK,10/02/2015,395744,2879,CAP,Parkeon Ltd,03238G,,
Gloucester City Council,23UE,REDACTED,REDACTED,REDACTED,REDACTED,REDACTED,10/02/2015,REDACTED,68,NET,REDACTED,REDACTED,,
Gloucester City Council,23UE,REDACTED,REDACTED,REDACTED,REDACTED,REDACTED,10/02/2015,REDACTED,259.25,NET,REDACTED,REDACTED,,
Gloucester City Council,23UE,REDACTED,REDACTED,REDACTED,REDACTED,REDACTED,10/02/2015,REDACTED,187,NET,REDACTED,REDACTED,,
Gloucester City Council,23UE,Aspire Admin Charges,LC105,Printing,5300,DEC 2014-FEB 2015,11/02/2015,397012,33967.8,NET,Danwood Group Limited,09555G,,
Gloucester City Council,23UE,Client Revs & Bens Contract,RT240,Bailiffs Fees,5368,VAT on statutory fees,11/02/2015,397920,0,NET,Bristow & Sutor,05450M,,
Gloucester City Council,23UE,Client Revs & Bens Contract,RT240,Bailiffs Fees,5368,VAT on statutory fees,11/02/2015,397921,120,NET,Bristow & Sutor,05450M,,
Gloucester City Council,23UE,Contact Centre,RB300,Uniforms,5201,Uniforms,11/02/2015,397913,131.2,NET,Meltemi Company Clothing Limited,54572N,,
Gloucester City Council,23UE,Docks Complex - Services,RB100,Catering Provisions -Food,5110,FOOD,11/02/2015,397429,77.95,NET,Janes Pantry,24500W,,
Gloucester City Council,23UE,Docks Complex - Services,RB100,Other Minor Supplies Services,5590,NORTH WAREHOUSE,11/02/2015,397520,225,NET,Sparklin Facilities Ltd,09142N,,
Gloucester City Council,23UE,Docks Complex - Services,RB100,Recycling,3631,Recycling January 2015,11/02/2015,397918,90,NET,Printwaste Recycling,57114W,,
Gloucester City Council,23UE,Docks Complex - Services,RB100,Recycling,3631,Recycling & Shredding,11/02/2015,397919,333.3,NET,Printwaste Recycling,57114W,,
Gloucester City Council,23UE,Electrical Investigatory Works,RY142,Contract Payments,0020,Technical Services,11/02/2015,395309,160,CAP,Mss Group,14469F,,
Gloucester City Council,23UE,External Communications,RC431,Advertising And Publicity,5702,Photography 03/09 and 05/09 2014,11/02/2015,397710,200.9,NET,Pixel Photography Ltd,14990N,,
Gloucester City Council,23UE,Homelessness,CH120,Basic Pay - Temporary Staff,2751,temporary staff,11/02/2015,397434,342,NET,Building Recruitment Company Ltd,55385E,,
Gloucester City Council,23UE,Homelessness,CH120,Basic Pay - Temporary Staff,2751,temporary staff,11/02/2015,397554,427.5,NET,Building Recruitment Company Ltd,55385E,,
Gloucester City Council,23UE,Printing,RP103,Printing,5300,Print Room Sales January 2015,11/02/2015,397728,2130.73,NET,Alpha Colour Printers Ltd,00945B,,
Gloucester City Council,23UE,Rugby World Cup,LT450,Fees For Services Received,5350,Rugby World Cup 2015,11/02/2015,397900,3500,NET,Marketing Gloucester Ltd,08925E,,
Gloucester City Council,23UE,Stationery Services,RS150,Stationery,5302,stationery,11/02/2015,397929,21.96,NET,Lyreco Uk Ltd,11746G,,
Gloucester City Council,23UE,Asset Management,RS300,Advertising And Publicity,5702,Advert January 2015,12/02/2015,398034,1325,NET,Haymarket Media Group Ltd,56642Y,,
Gloucester City Council,23UE,Blackfriars,LA609,Cleaning Materials,3600,Cover Cleaning 13/08/2014,12/02/2015,397909,325,NET,Into Cleaning,14609P,,
Gloucester City Council,23UE,Blackfriars,LA609,Cleaning Materials,3600,Cover Cleaning 28/11/2014,12/02/2015,397899,325,NET,Into Cleaning,14609P,,
Gloucester City Council,23UE,Business Transformation & Tech,RT700,Computer Software <5000,5425,Desktops & Licences,12/02/2015,397553,3661.98,NET,Lexis Nexis Ltd,01712U,,
Gloucester City Council,23UE,Cemeteries,HC300,Maint Of Grounds - General,3030,Roses & Tree Ties,12/02/2015,398027,93,NET,Genus Plant Sourcing,14143S,,
Gloucester City Council,23UE,Cemeteries,HC300,"Seeds, Trees, Plants, Shrubs",3028,Roses & Tree Ties,12/02/2015,398027,50,NET,Genus Plant Sourcing,14143S,,
Gloucester City Council,23UE,Cemeteries,HC300,Trade Refuse Tipping Fees,6297,Hire of Dumper Dec 14- Jan 15,12/02/2015,398026,475,NET,Allstone Sand & Gravel Aggregates Ltd,00940M,,
Gloucester City Council,23UE,Cemeteries,HC300,Trade Refuse Tipping Fees,6297,Skips,12/02/2015,398069,765,NET,Allstone Sand & Gravel Aggregates Ltd,00940M,,
Gloucester City Council,23UE,Cemeteries,HC300,Trade Refuse Tipping Fees,6297,Waste,12/02/2015,398070,720,NET,Allstone Sand & Gravel Aggregates Ltd,00940M,,
Gloucester City Council,23UE,City Museum And Art Gallery,LM200,Catering Provisions -Food,5110,Espresso Machine Rental Dec 2014,12/02/2015,398028,135,NET,La Spaziale Uk Ltd,11823P,,
Gloucester City Council,23UE,City Museum Catering,LM202,Catering Provisions -Food,5110,Food,12/02/2015,398045,38.6,NET,Woodward Foodservice,10714F,,
Gloucester City Council,23UE,City Museum Catering,LM202,Catering Provisions -Food,5110,Food,12/02/2015,398046,74.31,NET,Woodward Foodservice,10714F,,
Gloucester City Council,23UE,City Museum Catering,LM202,Catering Provisions -Food,5110,Food,12/02/2015,398047,132.38,NET,Woodward Foodservice,10714F,,
Gloucester City Council,23UE,City Museum Catering,LM202,Catering Provisions -Food,5110,Milk,12/02/2015,398048,4.96,NET,Total Produce Gloucester,12645E,,
Gloucester City Council,23UE,City Museum Catering,LM202,Catering Provisions -Food,5110,Milk,12/02/2015,398049,4.96,NET,Total Produce Gloucester,12645E,,
Gloucester City Council,23UE,City Museum Catering,LM202,Catering Provisions -Food,5110,Milk,12/02/2015,398050,4.6,NET,Total Produce Gloucester,12645E,,
Gloucester City Council,23UE,City Museum Catering,LM202,Catering Provisions -Food,5110,Milk,12/02/2015,398051,4.6,NET,Total Produce Gloucester,12645E,,
Gloucester City Council,23UE,City Museum Catering,LM202,Catering Provisions -Food,5110,Milk,12/02/2015,398052,4.6,NET,Total Produce Gloucester,12645E,,
Gloucester City Council,23UE,City Museum Catering,LM202,Catering Provisions -Food,5110,Milk,12/02/2015,398053,4.6,NET,Total Produce Gloucester,12645E,,
Gloucester City Council,23UE,City Museum Catering,LM202,Catering Provisions -Food,5110,Milk,12/02/2015,398054,4.6,NET,Total Produce Gloucester,12645E,,
Gloucester City Council,23UE,Civica Admin Charges,RT105,Fees For Services Received,5350,CHD Subscription Advance,12/02/2015,397906,4,NET,Companies House,58954E,,
Gloucester City Council,23UE,Civic Admin And Hospitality,RC210,Hospitality,5122,Festival of Remembrance,12/02/2015,397911,1532.75,NET,Aspire Sports & Cultural Trust,08135V,,
Gloucester City Council,23UE,Civic Admin And Hospitality,RC210,Other Minor Supplies Services,5590,Calligraphy Work,12/02/2015,397910,110,NET,Geoff C Cook Picture Framing,58727U,,
Gloucester City Council,23UE,Civica It Contract,RT270,Contracted Services,6970,IT Service Charges March 2015,12/02/2015,397683,47916.66,NET,Civica Uk Ltd,10841X,,
Gloucester City Council,23UE,Client Revs & Bens Contract,RT240,Fees For Services Received,5350,Marriage Certificate for Investigation,12/02/2015,398088,10,NET,Gloucestershire County Council,55397X,,
Gloucester City Council,23UE,REDACTED,REDACTED,REDACTED,REDACTED,REDACTED,12/02/2015,REDACTED,885,NET,REDACTED,REDACTED,,
Gloucester City Council,23UE,Crematorium,HC200,"Seeds, Trees, Plants, Shrubs",3028,Cultivator June 2014,12/02/2015,394280,154,NET,Ermin Plant Hire & Services Ltd,14150V,,
Gloucester City Council,23UE,Docks Complex - Services,RB100,Catering Provisions -Food,5110,Food w/e 01/02/2015,12/02/2015,397723,82.63,NET,Janes Pantry,24500W,,
Gloucester City Council,23UE,Docks Complex - Services,RB100,Service Charges,3020,HIRE JAN-MAR 2015,12/02/2015,395741,48.75,NET,Wessex Products (Leasing) Ltd,03684C,,
Gloucester City Council,23UE,REDACTED,REDACTED,REDACTED,REDACTED,REDACTED,12/02/2015,REDACTED,2000,NET,REDACTED,REDACTED,,
Gloucester City Council,23UE,Green Transport Policy,PJ130,Electric Car Charge,4030,Smart for two Coupe,12/02/2015,398021,287.35,NET,Daimler Fleet Management,07828N,,
Gloucester City Council,23UE,Guildhall Bar And Caf�,LA210,Catering Provisions -Food,5110,Food,12/02/2015,398055,259.75,NET,Woodward Foodservice,10714F,,
Gloucester City Council,23UE,Guildhall Bar And Caf�,LA210,Catering Provisions -Food,5110,Milk,12/02/2015,398056,4.96,NET,Total Produce Gloucester,12645E,,
Gloucester City Council,23UE,Guildhall Bar And Caf�,LA210,Catering Provisions -Food,5110,Milk,12/02/2015,398057,4.96,NET,Total Produce Gloucester,12645E,,
Gloucester City Council,23UE,Guildhall Bar And Caf�,LA210,Catering Provisions -Food,5110,Milk,12/02/2015,398058,4.96,NET,Total Produce Gloucester,12645E,,
Gloucester City Council,23UE,Guildhall Bar And Caf�,LA210,Catering Provisions -Food,5110,Milk,12/02/2015,398059,4.6,NET,Total Produce Gloucester,12645E,,
Gloucester City Council,23UE,Guildhall Bar And Caf�,LA210,Catering Provisions -Food,5110,Milk,12/02/2015,398060,4.6,NET,Total Produce Gloucester,12645E,,
Gloucester City Council,23UE,Guildhall Bar And Caf�,LA210,Catering Provisions -Food,5110,Milk,12/02/2015,398061,4.96,NET,Total Produce Gloucester,12645E,,
Gloucester City Council,23UE,Guildhall Bar And Caf�,LA210,Catering Provisions -Food,5110,Milk,12/02/2015,398062,4.6,NET,Total Produce Gloucester,12645E,,
Gloucester City Council,23UE,Guildhall Bar And Caf�,LA210,Catering Provisions -Food,5110,Milk,12/02/2015,398063,4.6,NET,Total Produce Gloucester,12645E,,
Gloucester City Council,23UE,Guildhall Bar And Caf�,LA210,Catering Provisions -Food,5110,Milk,12/02/2015,398064,4.6,NET,Total Produce Gloucester,12645E,,
Gloucester City Council,23UE,Guildhall Bar And Caf�,LA210,Catering Provisions -Food,5110,Milk,12/02/2015,398065,4.6,NET,Total Produce Gloucester,12645E,,
Gloucester City Council,23UE,Guildhall Bar And Caf�,LA210,Catering Provisions -Food,5110,Milk,12/02/2015,398066,4.6,NET,Total Produce Gloucester,12645E,,
Gloucester City Council,23UE,Guildhall Bar And Caf�,LA210,Catering Provisions -Food,5110,Milk,12/02/2015,398067,4.6,NET,Total Produce Gloucester,12645E,,
Gloucester City Council,23UE,Guildhall Bar And Caf�,LA210,Catering Provisions -Food,5110,Milk,12/02/2015,398068,4.6,NET,Total Produce Gloucester,12645E,,
Gloucester City Council,23UE,Guildhall Bar And Caf�,LA210,Catering Provisions -Liquor,5111,Gloucester Gold,12/02/2015,398025,210,NET,Gloucester Brewery,13373F,,
Gloucester City Council,23UE,Guildhall Bar And Caf�,LA210,Catering Provisions -Liquor,5111,Liquor,12/02/2015,398024,913.98,NET,Cellar Supplies Cheltenham Ltd,01563L,,
Gloucester City Council,23UE,Guildhall Bar And Caf�,LA210,Hire Of Equipment,5020,Cups,12/02/2015,398023,439.45,NET,Gerry Dance Disposables Ltd,54579Y,,
Gloucester City Council,23UE,REDACTED,REDACTED,REDACTED,REDACTED,REDACTED,12/02/2015,REDACTED,800,NET,REDACTED,REDACTED,,
Gloucester City Council,23UE,REDACTED,REDACTED,REDACTED,REDACTED,REDACTED,12/02/2015,REDACTED,582.68,NET,REDACTED,REDACTED,,
Gloucester City Council,23UE,REDACTED,REDACTED,REDACTED,REDACTED,REDACTED,12/02/2015,REDACTED,600,NET,REDACTED,REDACTED,,
Gloucester City Council,23UE,Legal Services,RS200,Basic Pay - Temporary Staff,2751,temporary staff,12/02/2015,396960,550,NET,Paystream My Max Limited,15049Z,,
Gloucester City Council,23UE,Legal Services,RS200,Basic Pay - Temporary Staff,2751,temporary staff,12/02/2015,397267,700,NET,Paystream My Max Limited,15049Z,,
Gloucester City Council,23UE,Nms Contract,HI102,Additional Non-Tender Items,6973,City Waste Caddy Label,12/02/2015,397926,703,NET,Eurolabel,10252Z,,
Gloucester City Council,23UE,Tourism Marketing,LT100,Operational Equipment <5000,5012,Rugby Ball Display Case,12/02/2015,398032,235.96,NET,Puffin Plastics Ltd,15501C,,
Gloucester City Council,23UE,Aspire Admin Charges,LC105,Contracted Services,6970,FEB 2015,13/02/2015,397835,71458.92,NET,Aspire Sports & Cultural Trust,08135V,,
Gloucester City Council,23UE,City Museum And Art Gallery,LM200,Maint Agreements - Fixed Plant,3011,Annual Keyholding Service,13/02/2015,398033,630,NET,Glevum Security Ltd,03249B,,
Gloucester City Council,23UE,Client Revs & Bens Contract,RT240,Bailiffs Fees,5368,VAT on fees collected,13/02/2015,398035,0,NET,Phoenix Commercial Collections Ltd,13435J,,
Gloucester City Council,23UE,Community Safety Projects,FP500,Basic Pay - Temporary Staff,2751,temporary staff,13/02/2015,398038,547.5,NET,Travail Employment Ltd,49371W,,
Gloucester City Council,23UE,Development Management,PT200,Advertising And Publicity,5702,advert 03/02/15,13/02/2015,398001,204.51,NET,Local World Ltd,08556P,,
Gloucester City Council,23UE,Development Management,PT200,Microfilming / Cd-Rom Storage,5330,jan 2015,13/02/2015,398016,64.28,NET,Transmedia Technology Ltd,08635T,,
Gloucester City Council,23UE,Development Management,PT200,Subscriptions,5600,dcp online renewals,13/02/2015,398017,1155,NET,Haymarket Media Group Ltd,56642Y,,
Gloucester City Council,23UE,Docks Complex - Catering Servs,RB110,Catering Provisions -Food,5110,Food,13/02/2015,398179,369.29,NET,3663,55585U,,
Gloucester City Council,23UE,Docks Complex - Catering Servs,RB110,Catering Provisions -Food,5110,Food,13/02/2015,398180,29.65,NET,3663,55585U,,
Gloucester City Council,23UE,Docks Complex - Catering Servs,RB110,Catering Provisions -Food,5110,Food,13/02/2015,398182,40.59,NET,Total Produce Gloucester,12645E,,
Gloucester City Council,23UE,Docks Complex - Catering Servs,RB110,Catering Provisions -Food,5110,Food,13/02/2015,398183,14.34,NET,Total Produce Gloucester,12645E,,
Gloucester City Council,23UE,Docks Complex - Catering Servs,RB110,Catering Provisions -Food,5110,Food,13/02/2015,398184,13.79,NET,Total Produce Gloucester,12645E,,
Gloucester City Council,23UE,Docks Complex - Catering Servs,RB110,Catering Provisions -Food,5110,Food,13/02/2015,398185,35.42,NET,Total Produce Gloucester,12645E,,
Gloucester City Council,23UE,Docks Complex - Catering Servs,RB110,Catering Provisions -Food,5110,Food,13/02/2015,398186,37.76,NET,Total Produce Gloucester,12645E,,
Gloucester City Council,23UE,Docks Complex - Catering Servs,RB110,Catering Provisions -Food,5110,Food,13/02/2015,398187,24.32,NET,Total Produce Gloucester,12645E,,
Gloucester City Council,23UE,Docks Complex - Catering Servs,RB110,Catering Provisions -Food,5110,Food,13/02/2015,398188,36.03,NET,Total Produce Gloucester,12645E,,
Gloucester City Council,23UE,Docks Complex - Catering Servs,RB110,Catering Provisions -Food,5110,Food,13/02/2015,398189,17.06,NET,Total Produce Gloucester,12645E,,
Gloucester City Council,23UE,Docks Complex - Catering Servs,RB110,Catering Provisions -Food,5110,Food,13/02/2015,398190,8.64,NET,Total Produce Gloucester,12645E,,
Gloucester City Council,23UE,Docks Complex - Catering Servs,RB110,Catering Provisions -Food,5110,Food,13/02/2015,398191,21.58,NET,Total Produce Gloucester,12645E,,
Gloucester City Council,23UE,Docks Complex - Catering Servs,RB110,Catering Provisions -Food,5110,Food,13/02/2015,398192,22.49,NET,Total Produce Gloucester,12645E,,
Gloucester City Council,23UE,Docks Complex - Catering Servs,RB110,Catering Provisions -Food,5110,Food,13/02/2015,398193,33.44,NET,Total Produce Gloucester,12645E,,
Gloucester City Council,23UE,Docks Complex - Catering Servs,RB110,Catering Provisions -Food,5110,Food,13/02/2015,398194,11.19,NET,Total Produce Gloucester,12645E,,
Gloucester City Council,23UE,Docks Complex - Catering Servs,RB110,Catering Provisions -Food,5110,Food,13/02/2015,398195,36.52,NET,Total Produce Gloucester,12645E,,
Gloucester City Council,23UE,Docks Complex - Catering Servs,RB110,Catering Provisions -Food,5110,Food,13/02/2015,398196,16.06,NET,Total Produce Gloucester,12645E,,
Gloucester City Council,23UE,Docks Complex - Catering Servs,RB110,Catering Provisions -Food,5110,Food,13/02/2015,398197,67.94,NET,Total Produce Gloucester,12645E,,
Gloucester City Council,23UE,Docks Complex - Catering Servs,RB110,Catering Provisions -Food,5110,Food,13/02/2015,398198,36.72,NET,Total Produce Gloucester,12645E,,
Gloucester City Council,23UE,Docks Complex - Catering Servs,RB110,Catering Provisions -Food,5110,Food,13/02/2015,398199,32.37,NET,Total Produce Gloucester,12645E,,
Gloucester City Council,23UE,Docks Complex - Catering Servs,RB110,Catering Provisions -Food,5110,Food,13/02/2015,398200,40.02,NET,Total Produce Gloucester,12645E,,
Gloucester City Council,23UE,Docks Complex - Catering Servs,RB110,Catering Provisions -Food,5110,Food,13/02/2015,398202,48.82,NET,Total Produce Gloucester,12645E,,
Gloucester City Council,23UE,Docks Complex - Catering Servs,RB110,Catering Provisions -Food,5110,Food,13/02/2015,398203,30.48,NET,Total Produce Gloucester,12645E,,
Gloucester City Council,23UE,Docks Complex - Catering Servs,RB110,Catering Provisions -Food,5110,Food,13/02/2015,398204,33.93,NET,Total Produce Gloucester,12645E,,
Gloucester City Council,23UE,Docks Complex - Catering Servs,RB110,Catering Provisions -Food,5110,Food,13/02/2015,398205,39.05,NET,Total Produce Gloucester,12645E,,
Gloucester City Council,23UE,Docks Complex - Catering Servs,RB110,Catering Provisions -Food,5110,Food,13/02/2015,398206,18.7,NET,Total Produce Gloucester,12645E,,
Gloucester City Council,23UE,Docks Complex - Catering Servs,RB110,Catering Provisions -Food,5110,Food,13/02/2015,398207,8.64,NET,Total Produce Gloucester,12645E,,
Gloucester City Council,23UE,Docks Complex - Catering Servs,RB110,Catering Provisions -Food,5110,Food,13/02/2015,398209,30.98,NET,Total Produce Gloucester,12645E,,
Gloucester City Council,23UE,Docks Complex - Catering Servs,RB110,Catering Provisions -Food,5110,Food,13/02/2015,398210,39.35,NET,Total Produce Gloucester,12645E,,
Gloucester City Council,23UE,Docks Complex - Catering Servs,RB110,Catering Provisions -Food,5110,Food,13/02/2015,398211,8.64,NET,Total Produce Gloucester,12645E,,
Gloucester City Council,23UE,Docks Complex - Catering Servs,RB110,Catering Provisions -Food,5110,Food,13/02/2015,398212,48.19,NET,Total Produce Gloucester,12645E,,
Gloucester City Council,23UE,Docks Complex - Catering Servs,RB110,Catering Provisions -Food,5110,Food,13/02/2015,398213,37.6,NET,Total Produce Gloucester,12645E,,
Gloucester City Council,23UE,Docks Complex - Catering Servs,RB110,Catering Provisions -Food,5110,Food,13/02/2015,398214,42.46,NET,Total Produce Gloucester,12645E,,
Gloucester City Council,23UE,Docks Complex - Catering Servs,RB110,Catering Provisions -Food,5110,Food,13/02/2015,398215,23.82,NET,Total Produce Gloucester,12645E,,
Gloucester City Council,23UE,Docks Complex - Catering Servs,RB110,Catering Provisions -Food,5110,Food,13/02/2015,398216,19.54,NET,Total Produce Gloucester,12645E,,
Gloucester City Council,23UE,Docks Complex - Catering Servs,RB110,Catering Provisions -Food,5110,Food,13/02/2015,398217,8.64,NET,Total Produce Gloucester,12645E,,
Gloucester City Council,23UE,Docks Complex - Catering Servs,RB110,Catering Provisions -Food,5110,Food,13/02/2015,398222,291.71,NET,3663,55585U,,
Gloucester City Council,23UE,Docks Complex - Catering Servs,RB110,Catering Provisions -Food,5110,Milk,13/02/2015,398201,8.64,NET,Total Produce Gloucester,12645E,,
Gloucester City Council,23UE,Docks Complex - Catering Servs,RB110,Catering Provisions -Food,5110,Milk,13/02/2015,398208,22.21,NET,Total Produce Gloucester,12645E,,
Gloucester City Council,23UE,Docks Complex - Services,RB100,Operational Equipment <5000,5012,Salt Spreader,13/02/2015,398072,139,NET,Ermin Plant Hire & Services Ltd,14150V,,
Gloucester City Council,23UE,REDACTED,REDACTED,REDACTED,REDACTED,REDACTED,13/02/2015,REDACTED,500,NET,REDACTED,REDACTED,,
Gloucester City Council,23UE,REDACTED,REDACTED,REDACTED,REDACTED,REDACTED,13/02/2015,REDACTED,282.62,NET,REDACTED,REDACTED,,
Gloucester City Council,23UE,REDACTED,REDACTED,REDACTED,REDACTED,REDACTED,13/02/2015,REDACTED,1100.75,NET,REDACTED,REDACTED,,
Gloucester City Council,23UE,REDACTED,REDACTED,REDACTED,REDACTED,REDACTED,13/02/2015,REDACTED,211.6,NET,REDACTED,REDACTED,,
Gloucester City Council,23UE,REDACTED,REDACTED,REDACTED,REDACTED,REDACTED,13/02/2015,REDACTED,137.38,NET,REDACTED,REDACTED,,
Gloucester City Council,23UE,REDACTED,REDACTED,REDACTED,REDACTED,REDACTED,13/02/2015,REDACTED,50,NET,REDACTED,REDACTED,,
Gloucester City Council,23UE,Guildhall Events,LA200,Fees For Services Received,5350,printing,13/02/2015,398002,1330,NET,Paddock Print,03014H,,
Gloucester City Council,23UE,Guildhall Events,LA200,Hire Of Equipment,5020,ROOM HIRE 02/03/15,13/02/2015,398006,62.5,NET,The New County Hotel,48928Z,,
Gloucester City Council,23UE,Guildhall Events,LA200,Hire Of Equipment,5020,ROOM HIRE 09/02/15,13/02/2015,398005,62.5,NET,The New County Hotel,48928Z,,
Gloucester City Council,23UE,REDACTED,REDACTED,REDACTED,REDACTED,REDACTED,13/02/2015,REDACTED,179.89,NET,REDACTED,REDACTED,,
Gloucester City Council,23UE,REDACTED,REDACTED,REDACTED,REDACTED,REDACTED,13/02/2015,REDACTED,100.11,NET,REDACTED,REDACTED,,
Gloucester City Council,23UE,REDACTED,REDACTED,REDACTED,REDACTED,REDACTED,13/02/2015,REDACTED,484.6,NET,REDACTED,REDACTED,,
Gloucester City Council,23UE,REDACTED,REDACTED,REDACTED,REDACTED,REDACTED,13/02/2015,REDACTED,525,NET,REDACTED,REDACTED,,
Gloucester City Council,23UE,Legal Services,RS200,Basic Pay - Temporary Staff,2751,temporary staff,13/02/2015,397714,883.75,NET,Michael Page International Recruitment Ltd,06601P,,
Gloucester City Council,23UE,Legal Services,RS200,Basic Pay - Temporary Staff,2751,temporary staff,13/02/2015,397842,487.29,NET,Premiere Employment Group Ltd,55468Z,,
Gloucester City Council,23UE,Marketing Gloucester Charges,RC433,Contracted Services,6970,Fourth Quarter Grant Funding 2014/15,13/02/2015,397901,43662.5,NET,Marketing Gloucester Ltd,08925E,,
Gloucester City Council,23UE,Nms Contract,HI102,Operational Equipment <5000,5012,Weatherproof Labels,13/02/2015,397923,159,NET,Eurolabel,10252Z,,
Gloucester City Council,23UE,Nms Contract,HI102,Operational Equipment <5000,5012,Weatherproof Labels,13/02/2015,397924,88,NET,Eurolabel,10252Z,,
Gloucester City Council,23UE,Off Street Car Parks,PP110,General Repair/Maint Buildings,3000,Salt Spreader,13/02/2015,398072,139,NET,Ermin Plant Hire & Services Ltd,14150V,,
Gloucester City Council,23UE,Stationery Services,RS150,Stationery,5302,stationery,13/02/2015,398140,40.95,NET,Lyreco Uk Ltd,11746G,,
Gloucester City Council,23UE,Stationery Services,RS150,Stationery,5302,stationery,13/02/2015,398218,35.91,NET,Lyreco Uk Ltd,11746G,,
Gloucester City Council,23UE,Stationery Services,RS150,Stationery,5302,stationery,13/02/2015,398219,38.36,NET,Lyreco Uk Ltd,11746G,,
Gloucester City Council,23UE,The Arbor,HC501,Catering Provisions -Food,5110,FOOD,13/02/2015,396951,256.51,NET,Janes Pantry,24500W,,
Gloucester City Council,23UE,Utilities,PT502,Electricity Supply,3110,NAVIGATION HOUSE,13/02/2015,397573,26.35,NET,Opus Energy (Corporate),12788B,,
Gloucester City Council,23UE,Utilities,PT502,Electricity Supply,3110,UTILITIES TO JAN 2014,13/02/2015,396879,13726.02,NET,West Mercia Energy,11669Z,,
Gloucester City Council,23UE,Utilities,PT502,Electricity Supply,3110,UTILITIES TO JAN 2015,13/02/2015,397572,-0.31,NET,West Mercia Energy,11669Z,,
Gloucester City Council,23UE,Utilities,PT502,Gas Supply,3100,UTILITIES TO JAN 2015,13/02/2015,397572,13048.96,NET,West Mercia Energy,11669Z,,
Gloucester City Council,23UE,Aspire Admin Charges,LC105,Other Minor Income,9900,BAILIFF PAYMENTS 30/01/15,16/02/2015,398267,90,NET,Aspire Sports & Cultural Trust,08135V,,
Gloucester City Council,23UE,Cctv Revenue Budget,FP501,Security Equipment Serv/Repair,3038,cctv,16/02/2015,398144,1726.67,NET,Quadrant Security Group Ltd,05109A,,
Gloucester City Council,23UE,Cemeteries,HC300,Maint Of Grounds - General,3030,STAKES,16/02/2015,398071,158,NET,Millington & Ramstedt Ltd,29815S,,
Gloucester City Council,23UE,Cemeteries,HC300,"Seeds, Trees, Plants, Shrubs",3028,STAKES,16/02/2015,398071,79,NET,Millington & Ramstedt Ltd,29815S,,
Gloucester City Council,23UE,Cems/Crems Admin,HC100,Security Services Fees,5351,Cash Processed January 2015,16/02/2015,398220,20.98,NET,G4s Cash Solutions (Uk) Ltd,04290V,,
Gloucester City Council,23UE,City Museum And Art Gallery,LM200,Cleaning Materials,3600,cartridge,16/02/2015,398143,80,NET,Gentworks Ltd,10388W,,
Gloucester City Council,23UE,City Museum And Art Gallery,LM200,Uniforms,5201,clothing,16/02/2015,398165,9.36,NET,Alexandra,50586R,,
Gloucester City Council,23UE,Client Revs & Bens Contract,RT240,Security Services Fees,5351,Cash Processed January 2015,16/02/2015,398220,17.54,NET,G4s Cash Solutions (Uk) Ltd,04290V,,
Gloucester City Council,23UE,Council Streetcare Team,HI101,Window Cleaning,3610,jan 2015,16/02/2015,397969,120,NET,Poles Apart Window Cleaning,11636R,,
Gloucester City Council,23UE,REDACTED,REDACTED,REDACTED,REDACTED,REDACTED,16/02/2015,REDACTED,4728.32,NET,REDACTED,REDACTED,,
Gloucester City Council,23UE,REDACTED,REDACTED,REDACTED,REDACTED,REDACTED,16/02/2015,REDACTED,395,NET,REDACTED,REDACTED,,
Gloucester City Council,23UE,REDACTED,REDACTED,REDACTED,REDACTED,REDACTED,16/02/2015,REDACTED,50,NET,REDACTED,REDACTED,,
Gloucester City Council,23UE,Docks Complex - Catering Servs,RB110,Catering Provisions -Food,5110,food,16/02/2015,398161,17.04,NET,Taynton Farm Foods,09653F,,
Gloucester City Council,23UE,Docks Complex - Telephones,RB120,Mobile Phones,5409,Flexi Sony Xperia,16/02/2015,398011,123.33,NET,Everything Everywhere Ltd (T-Mobile),02334V,,
Gloucester City Council,23UE,Docks Complex - Telephones,RB120,Telephones And Fax,5410,Charges Dec 2014 -Jan 2015,16/02/2015,395840,181.22,NET,Virgin Media Business,01869B,,
Gloucester City Council,23UE,Docks Complex - Telephones,RB120,Telephones And Fax,5410,Charges Nov- Dec 2014,16/02/2015,395537,1911.8,NET,Everything Everywhere Ltd (T-Mobile),57543S,,
Gloucester City Council,23UE,Folk Museum,LM210,Publications For Sale,5064,GOODS FOR RESALE,16/02/2015,397549,376.38,NET,Tobar Group Trading Ltd,44165A,,
Gloucester City Council,23UE,Folk Museum,LM210,Publications For Sale,5064,Various Items,16/02/2015,398044,285.88,NET,Westair Reproductions Ltd,47000G,,
Gloucester City Council,23UE,Gates Streets,GY014,Contract Payments,0020,BIN,16/02/2015,397009,211.28,CAP,Hanman Split Ltd,56889J,,
Gloucester City Council,23UE,REDACTED,REDACTED,REDACTED,REDACTED,REDACTED,16/02/2015,REDACTED,450,NET,REDACTED,REDACTED,,
Gloucester City Council,23UE,Head Of Regeneration & Eco Dev,GO102,Catering Provisions -Food,5110,meeting 18/12/14,16/02/2015,398003,28.8,NET,Gloucester Cathedral Enterprises Ltd,50228X,,
Gloucester City Council,23UE,Head Of Regeneration & Eco Dev,GO102,Catering Provisions -Food,5110,room hire 12/11/14,16/02/2015,397993,117.33,NET,Gloucester Cathedral Enterprises Ltd,50228X,,
Gloucester City Council,23UE,Homelessness,CH120,Fees For Services Received,5350,Medical reports,16/02/2015,398142,35,NET,Now Medical,03468L,,
Gloucester City Council,23UE,Homelessness,CH120,Fees For Services Received,5350,Medical report,16/02/2015,398150,20.5,NET,Gloucester Health Access Centre,11611H,,
Gloucester City Council,23UE,Homelessness,CH120,Removal And Storage Fees,5513,Storage Charges,16/02/2015,398154,39.11,NET,Advanced Removals & Storage Ltd,57142R,,
Gloucester City Council,23UE,Homelessness,CH120,Removal And Storage Fees,5513,Storage Charges,16/02/2015,398151,783.13,NET,Advanced Removals & Storage Ltd,57142R,,
Gloucester City Council,23UE,Homelessness,CH120,Removal And Storage Fees,5513,Storage Charges,16/02/2015,398152,51.43,NET,Advanced Removals & Storage Ltd,57142R,,
Gloucester City Council,23UE,Homelessness,CH120,Removal And Storage Fees,5513,Storage Charges,16/02/2015,398157,117.32,NET,Advanced Removals & Storage Ltd,57142R,,
Gloucester City Council,23UE,Homelessness,CH120,Removal And Storage Fees,5513,Storage Charges,16/02/2015,398153,78.21,NET,Advanced Removals & Storage Ltd,57142R,,
Gloucester City Council,23UE,Homelessness,CH120,Removal And Storage Fees,5513,Storage Charges,16/02/2015,398155,46.29,NET,Advanced Removals & Storage Ltd,57142R,,
Gloucester City Council,23UE,Homelessness,CH120,Removal And Storage Fees,5513,Storage Charges,16/02/2015,398158,202.5,NET,Advanced Removals & Storage Ltd,57142R,,
Gloucester City Council,23UE,Homelessness,CH120,Removal And Storage Fees,5513,Storage Charges,16/02/2015,398156,117.32,NET,Advanced Removals & Storage Ltd,57142R,,
Gloucester City Council,23UE,Homelessness,CH120,Rent In Advance,5516,rent in advance,16/02/2015,398268,300,NET,Orritt & Turner Properties,67065RV,,
Gloucester City Council,23UE,Human Resources,EH100,Fees For Services Received,5350,JAN 2015,16/02/2015,398139,500.84,NET,Industrial Medical & Safety Services Ltd,10668L,,
Gloucester City Council,23UE,Human Resources,EH100,Fees For Services Received,5350,PAYROLL JAN 2015,16/02/2015,397849,2602.74,NET,Gloucestershire County Council,18650D,,
Gloucester City Council,23UE,Legal Services,RS200,Publications,5060,PUBLICATIONS,16/02/2015,397524,7169,NET,Thomson Reuters,43110M,,
Gloucester City Council,23UE,Licences,HE510,Fees For Services Received,5350,ST JAMES CITY FARM,16/02/2015,397859,160.33,NET,REDACTED,REDACTED,,
Gloucester City Council,23UE,Rehousing,CH111,Fees For Services Received,5350,medical report,16/02/2015,398149,20.5,NET,Gloucester Health Access Centre,11611H,,
Gloucester City Council,23UE,Rehousing,CH111,Fees For Services Received,5350,medical reports,16/02/2015,398142,110,NET,Now Medical,03468L,,
Gloucester City Council,23UE,REDACTED,REDACTED,REDACTED,REDACTED,REDACTED,16/02/2015,REDACTED,553.35,NET,REDACTED,REDACTED,,
Gloucester City Council,23UE,Aspire Admin Charges,LC105,Security Services Fees,5351,MAR 2015,17/02/2015,398342,181.28,NET,G4s Cash Solutions (Uk) Ltd,04290V,,
Gloucester City Council,23UE,Building Control,PT400,Basic Pay - Temporary Staff,2751,temporary staff,17/02/2015,398368,1688.1,NET,The Oyster Partnership Limited,14900T,,
Gloucester City Council,23UE,Business Support,PT250,Publications,5060,NEWSPAPERS,17/02/2015,398309,172.35,NET,Ymk Supermarket,55281U,,
Gloucester City Council,23UE,Business Transformation & Tech,RT700,Computer Software Maintenance,5427,NNDR1 Form 2015-2017,17/02/2015,397904,5225,NET,Civica Uk Ltd,10841X,,
Gloucester City Council,23UE,Cemeteries,HC300,Purch Vehicles/M. Plant <5000,4000,helmet,17/02/2015,398305,32.7,NET,Spaldings,48759Y,,
Gloucester City Council,23UE,Cemeteries,HC300,Routine R And M - Vehicles,4011,DUMPER TRUCK,17/02/2015,398315,154.9,NET,Garden Machinery Gloucester,55641K,,
Gloucester City Council,23UE,Cems/Crems Admin,HC100,Security Services Fees,5351,JAN 2015,17/02/2015,398343,0.16,NET,G4s Cash Solutions (Uk) Ltd,04290V,,
Gloucester City Council,23UE,Cems/Crems Admin,HC100,Security Services Fees,5351,MAR 2015,17/02/2015,398342,103.33,NET,G4s Cash Solutions (Uk) Ltd,04290V,,
Gloucester City Council,23UE,City Museum And Art Gallery,LM200,Security Services Fees,5351,MAR 2015,17/02/2015,398342,90.64,NET,G4s Cash Solutions (Uk) Ltd,04290V,,
Gloucester City Council,23UE,City Museum And Art Gallery,LM200,Vocational Training,2970,funding applications seminar 17/02/15,17/02/2015,398013,95,NET,Cause4,15503Y,,
Gloucester City Council,23UE,Civica It Contract,RT270,Contracted Services,6970,Pension Excess Reclaim Dec 2014,17/02/2015,398356,720.94,NET,Civica Uk Ltd,10841X,,
Gloucester City Council,23UE,Civica It Contract,RT270,Contracted Services,6970,Pension Excess Reclaim Jan 2015,17/02/2015,398355,700.19,NET,Civica Uk Ltd,10841X,,
Gloucester City Council,23UE,Client Revs & Bens Contract,RT240,Bailiffs Fees,5368,VAT due on statutory fees,17/02/2015,398349,75,NET,Bristow & Sutor,05450M,,
Gloucester City Council,23UE,Client Revs & Bens Contract,RT240,Bailiffs Fees,5368,VAT due on statutory fees,17/02/2015,398350,314.7,NET,Bristow & Sutor,05450M,,
Gloucester City Council,23UE,Community Safety Projects,FP500,Basic Pay - Temporary Staff,2751,temporary staff,17/02/2015,398374,547.5,NET,Travail Employment Ltd,49371W,,
Gloucester City Council,23UE,Contact Centre,RB300,Basic Pay -Admin /Prof Staff,2601,temporary staff,17/02/2015,398177,350.9,NET,One To One Recruitment,04752H,,
Gloucester City Council,23UE,Contact Centre,RB300,Basic Pay -Admin /Prof Staff,2601,temporary staff,17/02/2015,398316,354,NET,Hbhc Synergy Ltd,13363J,,
Gloucester City Council,23UE,Corporate Reporting /Financing,RC504,Fees For Services Received,5350,Kiddivouchers February 2015,17/02/2015,398014,20.67,NET,Wider Plan Ltd ( Formerly Kiddivouchers),07893B,,
Gloucester City Council,23UE,Council Streetcare Team,HI101,Window Cleaning,3610,dec 2014,17/02/2015,398015,140,NET,Poles Apart Window Cleaning,11636R,,
Gloucester City Council,23UE,Countryside Unit,LP201,Maint Of Grounds - General,3030,Woodstock Gate,17/02/2015,398365,760,NET,Centrewire Ltd,54156P,,
Gloucester City Council,23UE,Crematorium,HC200,General Repair/Maint Buildings,3000,CHAPEL,17/02/2015,398301,3665,NET,Chlodel Carpets & Flooring Ltd,12596S,,
Gloucester City Council,23UE,Docks Complex - Catering Servs,RB110,Catering Provisions -Food,5110,Food,17/02/2015,398312,54.91,NET,Total Produce Gloucester,12645E,,
Gloucester City Council,23UE,Docks Complex - Services,RB100,General Repair/Maint Buildings,3000,NORTH WAREHOUSE,17/02/2015,398327,80,NET,Three Counties Drain Service,44033V,,
Gloucester City Council,23UE,Docks Complex - Services,RB100,Security Services Fees,5351,JAN 2015,17/02/2015,398343,11.68,NET,G4s Cash Solutions (Uk) Ltd,04290V,,
Gloucester City Council,23UE,Docks Complex - Services,RB100,Security Services Fees,5351,MAR 2015,17/02/2015,398342,270.81,NET,G4s Cash Solutions (Uk) Ltd,04290V,,
Gloucester City Council,23UE,Dwelling Improvements,BY008,Contract Payments,0020,DEC 2014 CAPITAL,17/02/2015,396620,226692.66,CAP,Gloucester City Homes,05244T,,
Gloucester City Council,23UE,Events,LT410,Events,5952,Grant for Gloucester Day,17/02/2015,397902,2000,NET,Marketing Gloucester Ltd,08925E,,
Gloucester City Council,23UE,Events,LT410,Events,5952,Tall Ships Festival Grant 2015,17/02/2015,397903,25000,NET,Marketing Gloucester Ltd,08925E,,
Gloucester City Council,23UE,Financial Services,RT200,Training Course Fees,5367,AAT Exam fees 19/02/2015,17/02/2015,398431,76.5,NET,Pitman Training Cheltenham,15476Z,,
Gloucester City Council,23UE,Folk Museum,LM210,Security Services Fees,5351,MAR 2015,17/02/2015,398342,90.64,NET,G4s Cash Solutions (Uk) Ltd,04290V,,
Gloucester City Council,23UE,General Drainage Works,PY241,Contract Payments,0020,Tewkesbury Road,17/02/2015,398367,600,CAP,Greenfields Garden Services Ltd,48130G,,
Gloucester City Council,23UE,Gloucester Guildhall,LA100,Security Services Fees,5351,MAR 2015,17/02/2015,398342,90.64,NET,G4s Cash Solutions (Uk) Ltd,04290V,,
Gloucester City Council,23UE,Grants To Voluntary Sector,FG100,Members Allocation Fund,7100F,football equip,17/02/2015,398018,500.49,NET,Stadia Sports International At Broxap,13032M,,
Gloucester City Council,23UE,REDACTED,REDACTED,REDACTED,REDACTED,REDACTED,17/02/2015,REDACTED,200,NET,REDACTED,REDACTED,,
Gloucester City Council,23UE,REDACTED,REDACTED,REDACTED,REDACTED,REDACTED,17/02/2015,REDACTED,550,NET,REDACTED,REDACTED,,
Gloucester City Council,23UE,REDACTED,REDACTED,REDACTED,REDACTED,REDACTED,17/02/2015,REDACTED,900,NET,REDACTED,REDACTED,,
Gloucester City Council,23UE,Hackney Carriages,HL100,Fees For Services Received,5350,Electronic Checks,17/02/2015,397914,63,NET,Intelligent Data Systems (Uk) Ltd,11067G,,
Gloucester City Council,23UE,Herbert Reception Upgrade,RY201,Capital General Repairs & Main,0013,Bench Stand,17/02/2015,397675,652.5,CAP,Zip Heaters (Uk) Ltd,13125D,,
Gloucester City Council,23UE,Hmo Licences,HE520,Operational Equipment <5000,5012,NEAL Interview CD,17/02/2015,398362,216,NET,Canford Audio Plc,07875D,,
Gloucester City Council,23UE,Hmo Licences,HE520,Operational Equipment <5000,5012,replacement recorder,17/02/2015,396885,1500,NET,Canford Audio Plc,07875D,,
Gloucester City Council,23UE,Homelessness,CH120,Board And Lodging,5515,accommodation,17/02/2015,398334,20,NET,Carbrey Housing Ltd,11098G,,
Gloucester City Council,23UE,REDACTED,REDACTED,REDACTED,REDACTED,REDACTED,17/02/2015,REDACTED,55,NET,REDACTED,REDACTED,,
Gloucester City Council,23UE,REDACTED,REDACTED,REDACTED,REDACTED,REDACTED,17/02/2015,REDACTED,30,NET,REDACTED,REDACTED,,
Gloucester City Council,23UE,Internal Audit,RT300,Basic Pay - Temporary Staff,2751,temporary staff,17/02/2015,398304,778.75,NET,Robert Half Ltd,03959K,,
Gloucester City Council,23UE,Internal Audit,RT300,Vocational Training,2970,temporary staff,17/02/2015,398329,140,NET,Newport City Council,15473F,,
Gloucester City Council,23UE,Investment Property,RB500,Fees For Services Received,5350,MANOR PARK,17/02/2015,398300,157,NET,Alder King*,02367D,,
Gloucester City Council,23UE,Investment Property,RB500,Fees For Services Received,5350,MARYLONE RIGHT OF WAY,17/02/2015,398331,300,NET,The Church Of St Mary De Crypt,49449H,,
Gloucester City Council,23UE,Investment Property,RB500,General Repair/Maint Buildings,3000,HKP WAREHOUSE,17/02/2015,398341,115,NET,Gea Denco Ltd,57271C,,
Gloucester City Council,23UE,Legal Services,RS200,Vocational Training,2970,conference,17/02/2015,398306,109,NET,The Solicitors Group,07649R,,
Gloucester City Council,23UE,Nms Contract,HI102,Contracted Services,6970,1/12th February 2015,17/02/2015,398376,490613.67,NET,Enterprise (Aol) Ltd,06695G,,
Gloucester City Council,23UE,Northwarehouse,RB150,Repair/Maint Of Fixed Plant,3006,Callout 20/01/2015,17/02/2015,398175,82.5,NET,Hewer Facilities Mgt Ltd,05232A,,
Gloucester City Council,23UE,Postal Services,RS120,Postages,5400,Response Plus Service,17/02/2015,398371,339.17,NET,Royal Mail S.Wales & South West,35830S,,
Gloucester City Council,23UE,Targeted Historic Grants,GY008,Contract Payments,0020,HISTORIC GRANT SCHEME,17/02/2015,398269,966,CAP,Cornish Bakehouse Uk Limited,15342Y,,
Gloucester City Council,23UE,Tourism Marketing,LT100,Security Services Fees,5351,MAR 2015,17/02/2015,398342,90.64,NET,G4s Cash Solutions (Uk) Ltd,04290V,,
Gloucester City Council,23UE,Vehicles,RS140,Fuel,4012,FUEL,17/02/2015,398339,121.52,NET,Allstar Business Solutions Ltd (Arval),06594A,,
Gloucester City Council,23UE,Allotments,HI104,Water Supply,3400,ACCT 7890105225,18/02/2015,398318,1815.64,NET,Severn Trent Water,01823H,,
Gloucester City Council,23UE,Blackfriars,LA609,Water Supply,3400,ACCT 7890105225,18/02/2015,398318,123.01,NET,Severn Trent Water,01823H,,
Gloucester City Council,23UE,Bus Station,RB400,General Repair/Maint Buildings,3000,Amend Destination Boards,18/02/2015,398363,685,NET,Hanman Split Ltd,56889J,,
Gloucester City Council,23UE,Bus Station,RB400,Water Supply,3400,ACCT 7890105225,18/02/2015,398318,168.61,NET,Severn Trent Water,01823H,,
Gloucester City Council,23UE,Cemeteries,HC300,Clothing,5200,Jackets,18/02/2015,398359,22.5,NET,Safpro Industrial Supply Co,39190W,,
Gloucester City Council,23UE,Cemeteries,HC300,Maint Of Grounds - General,3030,100 metres turff,18/02/2015,398518,230,NET,Aran Turf,56656L,,
Gloucester City Council,23UE,Cemeteries,HC300,Maint Of Grounds - General,3030,COCO Broom,18/02/2015,398508,15.79,NET,Spaldings,48759Y,,
Gloucester City Council,23UE,Cemeteries,HC300,Operational Materials,5070,Jackets,18/02/2015,398359,29.9,NET,Safpro Industrial Supply Co,39190W,,
Gloucester City Council,23UE,Cemeteries,HC300,Repair/Maint Of Monuments,3004,05/02/2015,18/02/2015,398501,395,NET,Easy Mix Ltd,01403L,,
Gloucester City Council,23UE,Cemeteries,HC300,Routine R And M - Vehicles,4011,Various Items,18/02/2015,398500,107.27,NET,Garden Machinery Gloucester,55641K,,
Gloucester City Council,23UE,Council Streetcare Team,HI101,Water Supply,3400,ACCT 7890105225,18/02/2015,398318,210.03,NET,Severn Trent Water,01823H,,
Gloucester City Council,23UE,Countryside Unit,LP201,Water Supply,3400,ACCT 7890105225,18/02/2015,398318,65.58,NET,Severn Trent Water,01823H,,
Gloucester City Council,23UE,Crematorium,HC200,Equipment For Sale,5050,Bench & Engraving Service,18/02/2015,398347,445,NET,Codec Facilities Ltd,14338Y,,
Gloucester City Council,23UE,Crematorium,HC200,Operational Equipment <5000,5012,Various Items,18/02/2015,398509,3173.78,NET,Revolution Multimedia,07880L,,
Gloucester City Council,23UE,Crematorium,HC200,"Seeds, Trees, Plants, Shrubs",3028,100metres Turf,18/02/2015,398517,230,NET,Aran Turf,56656L,,
Gloucester City Council,23UE,Crematorium,HC200,Water Supply,3400,ACCT 7890105225,18/02/2015,398318,1544.83,NET,Severn Trent Water,01823H,,
Gloucester City Council,23UE,Development Management,PT200,Advertising And Publicity,5702,Advertisement 12/02/2015,18/02/2015,398492,321.38,NET,Local World Ltd,08556P,,
Gloucester City Council,23UE,Docks Complex - Services,RB100,Cleaning Materials,3600,CLEANING MATS,18/02/2015,395714,78.38,NET,Core Hygiene Ltd,03885P,,
Gloucester City Council,23UE,Docks Complex - Services,RB100,Water Supply,3400,ACCT 7890105225,18/02/2015,398318,2366.76,NET,Severn Trent Water,01823H,,
Gloucester City Council,23UE,Financial Services,RT200,Subscriptions,5600,Annual Subscription 2014/15,18/02/2015,398507,200,NET,Society Of District Council Treasurers,08379L,,
Gloucester City Council,23UE,Folk Museum,LM210,Water Supply,3400,ACCT 7890105225,18/02/2015,398318,707.39,NET,Severn Trent Water,01823H,,
Gloucester City Council,23UE,Food Safety,HE100,Fees For Services Received,5350,Environmental Health,18/02/2015,398519,25,NET,Iron Maidens,02180Y,,
Gloucester City Council,23UE,Gl1 Pool Air Handling System,LY152,Contract Payments,0020,Final Fee- GL1,18/02/2015,398491,287.5,CAP,Goddard Consulting Llp,10598G,,
Gloucester City Council,23UE,Gloucester Guildhall,LA100,Water Supply,3400,ACCT 7890105225,18/02/2015,398318,494.73,NET,Severn Trent Water,01823H,,
Gloucester City Council,23UE,REDACTED,REDACTED,REDACTED,REDACTED,REDACTED,18/02/2015,REDACTED,390,NET,REDACTED,REDACTED,,
Gloucester City Council,23UE,REDACTED,REDACTED,REDACTED,REDACTED,REDACTED,18/02/2015,REDACTED,215.68,NET,REDACTED,REDACTED,,
Gloucester City Council,23UE,REDACTED,REDACTED,REDACTED,REDACTED,REDACTED,18/02/2015,REDACTED,500,NET,REDACTED,REDACTED,,
Gloucester City Council,23UE,Investment Property,RB500,Water Supply,3400,ACCT 7890105225,18/02/2015,398318,393.97,NET,Severn Trent Water,01823H,,
Gloucester City Council,23UE,Members Support,RC300,Members Training,5535,CONFERENCE ACCOMMODATION,18/02/2015,398167,50,NET,Improvement & Development Agency,55793J,,
Gloucester City Council,23UE,Off Street Car Parks,PP110,Water Supply,3400,ACCT 7890105225,18/02/2015,398318,3470.79,NET,Severn Trent Water,01823H,,
Gloucester City Council,23UE,Public Conveniences (Client),HI400,Water Supply,3400,ACCT 7890105225,18/02/2015,398318,690.64,NET,Severn Trent Water,01823H,,
Gloucester City Council,23UE,Taxi Marshalling Scheme,HL101,Taxi Marshals,5387,Taxi Marshalls 05/12 & 06/12 2014,18/02/2015,398485,172.5,NET,Cuff Security Services Ltd,12073G,,
Gloucester City Council,23UE,Taxi Marshalling Scheme,HL101,Taxi Marshals,5387,Taxi Marshalls 06/02 & 07/02 2015,18/02/2015,398513,172.5,NET,Cuff Security Services Ltd,12073G,,
Gloucester City Council,23UE,Taxi Marshalling Scheme,HL101,Taxi Marshals,5387,Taxi Marshalls 09/01 & 10/01 2015,18/02/2015,398480,172.5,NET,Cuff Security Services Ltd,12073G,,
Gloucester City Council,23UE,Taxi Marshalling Scheme,HL101,Taxi Marshals,5387,Taxi Marshalls 12/12 & 13/12 2014,18/02/2015,398484,172.5,NET,Cuff Security Services Ltd,12073G,,
Gloucester City Council,23UE,Taxi Marshalling Scheme,HL101,Taxi Marshals,5387,Taxi Marshalls 16/01 & 17/01 2015,18/02/2015,398479,172.5,NET,Cuff Security Services Ltd,12073G,,
Gloucester City Council,23UE,Taxi Marshalling Scheme,HL101,Taxi Marshals,5387,Taxi marshalls 19/12 & 20/12 2014,18/02/2015,398483,172.5,NET,Cuff Security Services Ltd,12073G,,
Gloucester City Council,23UE,Taxi Marshalling Scheme,HL101,Taxi Marshals,5387,Taxi Marshalls 23/01 & 14/01 2015,18/02/2015,398478,172.5,NET,Cuff Security Services Ltd,12073G,,
Gloucester City Council,23UE,Taxi Marshalling Scheme,HL101,Taxi Marshals,5387,Taxi marshalls 26/12 & 27/12 2015,18/02/2015,398482,212.75,NET,Cuff Security Services Ltd,12073G,,
Gloucester City Council,23UE,Taxi Marshalling Scheme,HL101,Taxi Marshals,5387,Taxi Marshalls 30/01 & 31/01 2015,18/02/2015,398477,172.5,NET,Cuff Security Services Ltd,12073G,,
Gloucester City Council,23UE,Taxi Marshalling Scheme,HL101,Taxi Marshals,5387,"Taxi Marshalls 31/12, 02/01 & 03/01",18/02/2015,398481,310.5,NET,Cuff Security Services Ltd,12073G,,
Gloucester City Council,23UE,Tic Trading,LT110,Materials For Sale,5080,Polo Shirts,18/02/2015,398496,260,NET,Sportfolio Europe Lp,14456R,,
Gloucester City Council,23UE,Tourism Marketing,LT100,Water Supply,3400,ACCT 7890105225,18/02/2015,398318,102.57,NET,Severn Trent Water,01823H,,
Gloucester City Council,23UE,Tourism Marketing,LT100,Window Cleaning,3610,Weekly Cleaning Jan 2015,18/02/2015,398506,12,NET,Interserve Fs (Uk) Limited,00442K,,
Gloucester City Council,23UE,Training Schemes,ET100,Vocational Training,2970,NVQ's,18/02/2015,398497,1340,NET,The Gold Standard,56141C,,
Gloucester City Council,23UE,Utilities,PT502,Electricity Supply,3110,GROSVENOR HOUSE,18/02/2015,398320,18.48,NET,Npower,03929V,,
Gloucester City Council,23UE,REDACTED,REDACTED,REDACTED,REDACTED,REDACTED,18/02/2015,REDACTED,178.5,NET,REDACTED,REDACTED,,
Gloucester City Council,23UE,1 Albion Cottages,RB545,General Repair/Maint Buildings,3000,"18 Commercial Road, clear debris",19/02/2015,398424,98.52,NET,Rf Gardiner Limited,12299B,,
Gloucester City Council,23UE,Asset Management,RS300,General Repair/Maint Buildings,3000,Gloucester Park Swiss Cottage,19/02/2015,398394,28.62,NET,Rf Gardiner Limited,12299B,,
Gloucester City Council,23UE,Asset Management,RS300,General Repair/Maint Buildings,3000,Gloucester Park Swiss Cottage,19/02/2015,398427,65.7,NET,Rf Gardiner Limited,12299B,,
Gloucester City Council,23UE,Asset Management,RS300,General Repair/Maint Buildings,3000,Tuffley Park Changing Rooms,19/02/2015,398383,378.78,NET,Rf Gardiner Limited,12299B,,
Gloucester City Council,23UE,Asset Management,RS300,General Repair/Maint Buildings,3000,"Widden Primary School, repair lights",19/02/2015,398423,581.61,NET,Rf Gardiner Limited,12299B,,
Gloucester City Council,23UE,Business Transformation & Tech,RT700,Subscriptions,5600,Insight Subscription 2015,19/02/2015,396431,890,NET,Socitm Service Ltd*,52552P,,
Gloucester City Council,23UE,Celebratory Lights,LT302,Christmas Lights,5024,Kings Square,19/02/2015,398409,42.09,NET,Rf Gardiner Limited,12299B,,
Gloucester City Council,23UE,Celebratory Lights,LT302,Hire Of Equipment,5020,"City Centre, disconnect cable",19/02/2015,398392,78.84,NET,Rf Gardiner Limited,12299B,,
Gloucester City Council,23UE,Cemeteries,HC300,General Repair/Maint Buildings,3000,Crematorium Gates,19/02/2015,398516,1748.5,NET,Gloucester Street Forge,11069C,,
Gloucester City Council,23UE,Corporate Reporting /Financing,RC504,Audit Fees,5383,KPMG,19/02/2015,395745,32728,NET,Kpmg,06498X,,
Gloucester City Council,23UE,Council Streetcare Team,HI101,Maint Of Grounds - General,3030,lobleys drive,19/02/2015,398164,540,NET,Rdb Safety Boat Ltd,13507J,,
Gloucester City Council,23UE,Daniels Brook S106,LY120,Contract Payments,0020,Various Items,19/02/2015,398348,220,CAP,Wybone Limited,13540L,,
Gloucester City Council,23UE,REDACTED,REDACTED,REDACTED,REDACTED,REDACTED,19/02/2015,REDACTED,35,NET,REDACTED,REDACTED,,
Gloucester City Council,23UE,Docks Complex - Castlemeads Cp,RB210,General Repair/Maint Buildings,3000,Castlemeads Car Park,19/02/2015,398408,32.84,NET,Rf Gardiner Limited,12299B,,
Gloucester City Council,23UE,Docks Complex - Castlemeads Cp,RB210,General Repair/Maint Buildings,3000,"Castlemeads Car Park, repair lighting",19/02/2015,398425,368.02,NET,Rf Gardiner Limited,12299B,,
Gloucester City Council,23UE,Docks Complex - Services,RB100,General Repair/Maint Buildings,3000,"Herbert Warehouse, repair lighting",19/02/2015,398429,65.7,NET,Rf Gardiner Limited,12299B,,
Gloucester City Council,23UE,Docks Complex - Services,RB100,General Repair/Maint Buildings,3000,"Herbert Warehouse, unblock sink",19/02/2015,398401,28.62,NET,Rf Gardiner Limited,12299B,,
Gloucester City Council,23UE,Docks Complex - Services,RB100,General Repair/Maint Buildings,3000,HKP Warehouses,19/02/2015,398387,32.84,NET,Rf Gardiner Limited,12299B,,
Gloucester City Council,23UE,Dwelling Improvements,BY008,Contract Payments,0020,Jan 2015 Capital Fee,19/02/2015,398352,674997.55,CAP,Gloucester City Homes,05244T,,
Gloucester City Council,23UE,REDACTED,REDACTED,REDACTED,REDACTED,REDACTED,19/02/2015,REDACTED,608,CAP,REDACTED,REDACTED,,
Gloucester City Council,23UE,Guildhall Works,RY155,Contract Payments,0020,Guildhall,19/02/2015,398388,876.03,CAP,Rf Gardiner Limited,12299B,,
Gloucester City Council,23UE,REDACTED,REDACTED,REDACTED,REDACTED,REDACTED,19/02/2015,REDACTED,484.6,NET,REDACTED,REDACTED,,
Gloucester City Council,23UE,REDACTED,REDACTED,REDACTED,REDACTED,REDACTED,19/02/2015,REDACTED,500,NET,REDACTED,REDACTED,,
Gloucester City Council,23UE,Interpretation & Signage,GY012,Contract Payments,0020,Kimbrose & Spa Interpretation Panels,19/02/2015,397682,2578,CAP,Fitzpatrick Woolmer Design & Publishing Ltd,04091D,,
Gloucester City Council,23UE,Investment Property,RB500,General Repair/Maint Buildings,3000,"18 Commercial Road, window",19/02/2015,398413,74.37,NET,Rf Gardiner Limited,12299B,,
Gloucester City Council,23UE,Investment Property,RB500,General Repair/Maint Buildings,3000,"Serbert Street, repairs to lighting",19/02/2015,398414,285.65,NET,Rf Gardiner Limited,12299B,,
Gloucester City Council,23UE,Investment Property,RB500,General Repair/Maint Buildings,3000,92-96 WESTGATE ST,19/02/2015,398303,180,NET,Three Counties Drain Service,44033V,,
Gloucester City Council,23UE,Investment Property,RB500,General Repair/Maint Buildings,3000,City Museum,19/02/2015,398416,190.81,NET,Rf Gardiner Limited,12299B,,
Gloucester City Council,23UE,Investment Property,RB500,General Repair/Maint Buildings,3000,"City Museum, fix leak in toilets",19/02/2015,398395,60.73,NET,Rf Gardiner Limited,12299B,,
Gloucester City Council,23UE,Investment Property,RB500,General Repair/Maint Buildings,3000,"City Museum, repair hot tap",19/02/2015,398390,13.34,NET,Rf Gardiner Limited,12299B,,
Gloucester City Council,23UE,Investment Property,RB500,General Repair/Maint Buildings,3000,"City Museum, replace light",19/02/2015,398406,254.47,NET,Rf Gardiner Limited,12299B,,
Gloucester City Council,23UE,Investment Property,RB500,General Repair/Maint Buildings,3000,"City Musuem, repair leaking tap",19/02/2015,398385,56.08,NET,Rf Gardiner Limited,12299B,,
Gloucester City Council,23UE,Investment Property,RB500,General Repair/Maint Buildings,3000,Coney Hill Crem,19/02/2015,398415,94.88,NET,Rf Gardiner Limited,12299B,,
Gloucester City Council,23UE,Investment Property,RB500,General Repair/Maint Buildings,3000,Coney Hill Crem,19/02/2015,398418,19.08,NET,Rf Gardiner Limited,12299B,,
Gloucester City Council,23UE,Investment Property,RB500,General Repair/Maint Buildings,3000,Coney Hill Crem,19/02/2015,398421,28.62,NET,Rf Gardiner Limited,12299B,,
Gloucester City Council,23UE,Investment Property,RB500,General Repair/Maint Buildings,3000,"Easgate Market, repair broken windows",19/02/2015,398430,30.98,NET,Rf Gardiner Limited,12299B,,
Gloucester City Council,23UE,Investment Property,RB500,General Repair/Maint Buildings,3000,EASTGATE MARKET,19/02/2015,398328,80,NET,Three Counties Drain Service,44033V,,
Gloucester City Council,23UE,Investment Property,RB500,General Repair/Maint Buildings,3000,"Eastgate Market, remove old pay phone",19/02/2015,398379,24.63,NET,Rf Gardiner Limited,12299B,,
Gloucester City Council,23UE,Investment Property,RB500,General Repair/Maint Buildings,3000,"Eastgate Market, repair hot water tap",19/02/2015,398407,84.36,NET,Rf Gardiner Limited,12299B,,
Gloucester City Council,23UE,Investment Property,RB500,General Repair/Maint Buildings,3000,"Eastgate Market, replace floor strip",19/02/2015,398382,60.46,NET,Rf Gardiner Limited,12299B,,
Gloucester City Council,23UE,Investment Property,RB500,General Repair/Maint Buildings,3000,Eastgate Street Roof Top Car Park,19/02/2015,398410,249.31,NET,Rf Gardiner Limited,12299B,,
Gloucester City Council,23UE,Investment Property,RB500,General Repair/Maint Buildings,3000,"Folk Museum, repair leaking sanitizer",19/02/2015,398396,19.08,NET,Rf Gardiner Limited,12299B,,
Gloucester City Council,23UE,Investment Property,RB500,General Repair/Maint Buildings,3000,Gloucester Park Swiss Cottage,19/02/2015,398378,28.62,NET,Rf Gardiner Limited,12299B,,
Gloucester City Council,23UE,Investment Property,RB500,General Repair/Maint Buildings,3000,"Guildhall, fix various leaks",19/02/2015,398393,41.05,NET,Rf Gardiner Limited,12299B,,
Gloucester City Council,23UE,Investment Property,RB500,General Repair/Maint Buildings,3000,"Guildhall, refix brackets",19/02/2015,398400,16.06,NET,Rf Gardiner Limited,12299B,,
Gloucester City Council,23UE,Investment Property,RB500,General Repair/Maint Buildings,3000,"Herbert Warehouse, attend to faulty ligh",19/02/2015,398397,317.27,NET,Rf Gardiner Limited,12299B,,
Gloucester City Council,23UE,Investment Property,RB500,General Repair/Maint Buildings,3000,"Robinswood Hill, repair toilet door",19/02/2015,398405,179.01,NET,Rf Gardiner Limited,12299B,,
Gloucester City Council,23UE,Investment Property,RB500,General Repair/Maint Buildings,3000,"TIC, aply water barrier",19/02/2015,398402,41.05,NET,Rf Gardiner Limited,12299B,,
Gloucester City Council,23UE,Investment Property,RB500,General Repair/Maint Buildings,3000,Tuffley Park Changing Rooms,19/02/2015,398417,24.63,NET,Rf Gardiner Limited,12299B,,
Gloucester City Council,23UE,Kings Sq Paving Emerg Works,RY161,Contract Payments,0020,"Kings Square, repairs",19/02/2015,398404,370.11,CAP,Rf Gardiner Limited,12299B,,
Gloucester City Council,23UE,Kings Sq Paving Emerg Works,RY161,Contract Payments,0020,"Kings Square, supply keys",19/02/2015,398422,27.89,CAP,Rf Gardiner Limited,12299B,,
Gloucester City Council,23UE,Kings Sq Paving Emerg Works,RY161,Contract Payments,0020,"Kings Square, various works",19/02/2015,398391,345.64,CAP,Rf Gardiner Limited,12299B,,
Gloucester City Council,23UE,Legal Services,RS200,Basic Pay - Temporary Staff,2751,temporary staff,19/02/2015,397235,1472.04,NET,Venn Group Ltd,04339P,,
Gloucester City Council,23UE,Legal Services,RS200,Basic Pay - Temporary Staff,2751,temporary staff,19/02/2015,398168,945,NET,Michael Page International Recruitment Ltd,06601P,,
Gloucester City Council,23UE,Legal Services,RS200,Basic Pay - Temporary Staff,2751,temporary staff,19/02/2015,397519,1549.93,NET,Venn Group Ltd,04339P,,
Gloucester City Council,23UE,Off Street Car Parks,PP110,Advertising And Publicity,5702,ADVERT,19/02/2015,398332,500,NET,Cityscape Maps Limited,05061D,,
Gloucester City Council,23UE,Off Street Car Parks,PP110,General Repair/Maint Buildings,3000,Eastgate Street Roof Top Car Park,19/02/2015,398411,32.84,NET,Rf Gardiner Limited,12299B,,
Gloucester City Council,23UE,Off Street Car Parks,PP110,General Repair/Maint Buildings,3000,Great Western Road Car Park,19/02/2015,398420,42.09,NET,Rf Gardiner Limited,12299B,,
Gloucester City Council,23UE,Off Street Car Parks,PP110,General Repair/Maint Buildings,3000,"Hare Lane South Car Park,",19/02/2015,398381,32.84,NET,Rf Gardiner Limited,12299B,,
Gloucester City Council,23UE,Off Street Car Parks,PP110,General Repair/Maint Buildings,3000,"Kings Walk Car Park, fix swollen door",19/02/2015,398386,32.84,NET,Rf Gardiner Limited,12299B,,
Gloucester City Council,23UE,Off Street Car Parks,PP110,General Repair/Maint Buildings,3000,"Kings Walk Car Park, refix barrier",19/02/2015,398398,130.3,NET,Rf Gardiner Limited,12299B,,
Gloucester City Council,23UE,Off Street Car Parks,PP110,General Repair/Maint Buildings,3000,"Kings Walk Car Park, repair door",19/02/2015,398428,24.63,NET,Rf Gardiner Limited,12299B,,
Gloucester City Council,23UE,Off Street Car Parks,PP110,General Repair/Maint Buildings,3000,"Kings Walk Car Park, repair lights",19/02/2015,398403,895.55,NET,Rf Gardiner Limited,12299B,,
Gloucester City Council,23UE,Off Street Car Parks,PP110,General Repair/Maint Buildings,3000,Ladybellgate Street Car Park,19/02/2015,398419,25.67,NET,Rf Gardiner Limited,12299B,,
Gloucester City Council,23UE,Off Street Car Parks,PP110,General Repair/Maint Buildings,3000,"Ladybellgate Street Car Park, reset bloc",19/02/2015,398546,61.09,NET,Rf Gardiner Limited,12299B,,
Gloucester City Council,23UE,Off Street Car Parks,PP110,General Repair/Maint Buildings,3000,Longsmith Street Car Park,19/02/2015,398412,16.42,NET,Rf Gardiner Limited,12299B,,
Gloucester City Council,23UE,Off Street Car Parks,PP110,General Repair/Maint Buildings,3000,"Longsmith Street Car Park, fix door",19/02/2015,398426,49.82,NET,Rf Gardiner Limited,12299B,,
Gloucester City Council,23UE,Off Street Car Parks,PP110,General Repair/Maint Buildings,3000,"Longsmith Street Car Park, repair pothol",19/02/2015,398380,38.88,NET,Rf Gardiner Limited,12299B,,
Gloucester City Council,23UE,Off Street Car Parks,PP110,General Repair/Maint Buildings,3000,"St Lucys Garden, replace lights",19/02/2015,398399,854.28,NET,Rf Gardiner Limited,12299B,,
Gloucester City Council,23UE,Off Street Car Parks,PP110,General Repair/Maint Buildings,3000,Westgate Street Car Park,19/02/2015,398389,500,NET,Rf Gardiner Limited,12299B,,
Gloucester City Council,23UE,Plock Ct Surface Water,PY271,Legal/Survey Fees -Land,0002,Repairs to Boardwalk,19/02/2015,398521,250,CAP,Mr M G Horton T/A H&T Property Maintenance,09210X,,
Gloucester City Council,23UE,Pollution Control,HE300,Charges For Services,9300,CLIPS,19/02/2015,398134,84.75,NET,Gradko International Ltd,11063B,,
Gloucester City Council,23UE,Safer Stronger Communities,FP841,Other Minor Supplies Services,5590,DV Key Rings,19/02/2015,398514,1098,NET,Icontact Advertising,05548T,,
Gloucester City Council,23UE,Shopmobility,PE200,Office Equipment <5000,5010,Annual Fee Jan- Dec 2015,19/02/2015,398022,200,NET,National Federation Of Shopmobility,48106D,,
Gloucester City Council,23UE,St Michaels Tower,GY016,Contract Payments,0020,St Michaels Tower,19/02/2015,398384,24.63,CAP,Rf Gardiner Limited,12299B,,
Gloucester City Council,23UE,Asset Management,RS300,Basic Pay - Temporary Staff,2751,Engineer Services January 2015,20/02/2015,398515,5188.75,NET,Ecostep Ltd,15511Z,,
Gloucester City Council,23UE,City Museum,RY153,Contract Payments,0020,Refurbishment of Museum Cases,20/02/2015,398575,5628.95,CAP,Showguard Ltd,15047D,,
Gloucester City Council,23UE,Contact Centre,RB300,Basic Pay -Admin /Prof Staff,2601,temporary staff,20/02/2015,398601,475.31,NET,One To One Recruitment,04752H,,
Gloucester City Council,23UE,Council Streetcare Team,HI101,General Repair/Maint Buildings,3000,London Road Rose garden,20/02/2015,398490,120,NET,Greenfields Garden Services Ltd,48130G,,
Gloucester City Council,23UE,Council Streetcare Team,HI101,Maint Of Grounds - General,3030,"Overbury Road, 09/02/2015",20/02/2015,398581,260,NET,Three Counties Drain Service,44033V,,
Gloucester City Council,23UE,Disabled Facilities Grants,CY013,Disabled Facility Grants,0074,Disabled Facilities Grant MDF5099,20/02/2015,398608,5380,CAP,Mears Home Improvement Ltd,00096G,,
Gloucester City Council,23UE,REDACTED,REDACTED,REDACTED,REDACTED,REDACTED,20/02/2015,REDACTED,380,CAP,REDACTED,REDACTED,,
Gloucester City Council,23UE,Gloscat S106,LY073,Contract Payments,0020,Gloucester Park Cricket Ground,20/02/2015,398488,2625,CAP,Greenfields Garden Services Ltd,48130G,,
Gloucester City Council,23UE,REDACTED,REDACTED,REDACTED,REDACTED,REDACTED,20/02/2015,REDACTED,600,NET,REDACTED,REDACTED,,
Gloucester City Council,23UE,REDACTED,REDACTED,REDACTED,REDACTED,REDACTED,20/02/2015,REDACTED,110,NET,REDACTED,REDACTED,,
Gloucester City Council,23UE,Homelessness,CH120,Basic Pay - Holding Account,1551,Storage Charges,20/02/2015,398599,152.04,NET,Advanced Removals & Storage Ltd,57142R,,
Gloucester City Council,23UE,Homelessness,CH120,Fees For Services Received,5350,"Medical Report, 12/02/2015",20/02/2015,398582,20.5,NET,Hadwen Medical Practice,59727U,,
Gloucester City Council,23UE,Homelessness,CH120,Fees For Services Received,5350,Medical Report,20/02/2015,398593,20.5,NET,Gloucester Health Access Centre,11611H,,
Gloucester City Council,23UE,Homelessness,CH120,Fees For Services Received,5350,Medical Report,20/02/2015,398592,20.5,NET,Gloucester Health Access Centre,11611H,,
Gloucester City Council,23UE,Homelessness,CH120,Fees For Services Received,5350,Medical Report,20/02/2015,398591,20.5,NET,Gloucester Health Access Centre,11611H,,
Gloucester City Council,23UE,REDACTED,REDACTED,REDACTED,REDACTED,REDACTED,20/02/2015,REDACTED,390,NET,REDACTED,REDACTED,,
Gloucester City Council,23UE,REDACTED,REDACTED,REDACTED,REDACTED,REDACTED,20/02/2015,REDACTED,484.6,NET,REDACTED,REDACTED,,
Gloucester City Council,23UE,Homelessness Prevention,CH122,Basic Pay - Temporary Staff,2751,temporary staff,20/02/2015,398600,905.51,NET,Building Recruitment Company Ltd,55385E,,
Gloucester City Council,23UE,REDACTED,REDACTED,REDACTED,REDACTED,REDACTED,20/02/2015,REDACTED,525,NET,REDACTED,REDACTED,,
Gloucester City Council,23UE,Investment Property,RB500,General Repair/Maint Buildings,3000,FOLK MUSEUM,20/02/2015,398308,87,NET,Adt Fire & Security Plc,54086D,,
Gloucester City Council,23UE,Kings Square,GY017,Contract Payments,0020,Kings Square Bollards,20/02/2015,398583,8841.61,CAP,Rf Gardiner Limited,12299B,,
Gloucester City Council,23UE,Rehousing,CH111,Fees For Services Received,5350,Letter regarding housing,20/02/2015,398597,20.5,NET,Dr P Lush & Partners,05680S,,
Gloucester City Council,23UE,Rehousing,CH111,Fees For Services Received,5350,Medical Report,20/02/2015,398590,20.5,NET,Hadwen Medical Practice,59727U,,
Gloucester City Council,23UE,Rehousing,CH111,Fees For Services Received,5350,Medical Report,20/02/2015,398595,20.5,NET,Dr R Watkins & Partners,59237H,,
Gloucester City Council,23UE,Rehousing,CH111,Fees For Services Received,5350,Medical Report,20/02/2015,398594,20.5,NET,Gloucester Health Access Centre,11611H,,
Gloucester City Council,23UE,Rehousing,CH111,Fees For Services Received,5350,Medical Report,20/02/2015,398596,20.5,NET,Gloucester City Health Centre,02093U,,
Gloucester City Council,23UE,Rehousing,CH111,Fees For Services Received,5350,Medical Report,20/02/2015,398598,20.5,NET,Kingsholm Surgery,11948S,,
Gloucester City Council,23UE,Stationery Services,RS150,Stationery,5302,stationery,20/02/2015,398584,47.26,NET,Lyreco Uk Ltd,11746G,,
Gloucester City Council,23UE,Stationery Services,RS150,Stationery,5302,stationery,20/02/2015,398585,224.44,NET,Lyreco Uk Ltd,11746G,,
Gloucester City Council,23UE,Stationery Services,RS150,Stationery,5302,stationery,20/02/2015,398586,176.6,NET,Lyreco Uk Ltd,11746G,,
Gloucester City Council,23UE,Tic Rovercard Sales,LT101,Materials For Sale,5080,December 2014,20/02/2015,398494,3814.5,NET,Stagecoach Services Ltd,56554W,,
Gloucester City Council,23UE,Tic Rovercard Sales,LT101,Materials For Sale,5080,January 2015,20/02/2015,398495,5508.5,NET,Stagecoach Services Ltd,56554W,,
Gloucester City Council,23UE,Tic Rovercard Sales,LT101,Sale Of Goods And Services,9230,December 2014,20/02/2015,398494,-317.88,NET,Stagecoach Services Ltd,56554W,,
Gloucester City Council,23UE,Tic Rovercard Sales,LT101,Sale Of Goods And Services,9230,January 2015,20/02/2015,398495,-459.05,NET,Stagecoach Services Ltd,56554W,,
Gloucester City Council,23UE,Utilities,PT502,Electricity Supply,3110,UTILITIES TO FEB 2015,20/02/2015,398473,42826.22,NET,West Mercia Energy,11669Z,,
Gloucester City Council,23UE,Utilities,PT502,Gas Supply,3100,UTILITIES TO FEB 2015,20/02/2015,398473,29933.89,NET,West Mercia Energy,11669Z,,
Gloucester City Council,23UE,Environmental Planning,LM340,Operational Materials,5070,green farm orchard,23/02/2015,397305,500,NET,Tcv T/A The Conservation Volunteers,55897V,,
Gloucester City Council,23UE,Postal Services,RS120,Postages,5400,Post 30/01 - 12/02 2015,23/02/2015,398604,1555.52,NET,Royal Mail S.Wales & South West,35830S,,
Gloucester City Council,23UE,The Arbor,HC501,Catering Provisions -Food,5110,Food,23/02/2015,398694,163.83,NET,3663,55585U,,
Gloucester City Council,23UE,Building Control,PT400,Basic Pay - Temporary Staff,2751,temporary staff,24/02/2015,398587,1686.8,NET,The Oyster Partnership Limited,14900T,,
Gloucester City Council,23UE,City Museum And Art Gallery,LM200,Advertising And Publicity,5702,whats on jan-jun 2015,24/02/2015,398145,299.44,NET,Glide Media,58829J,,
Gloucester City Council,23UE,Civica Contract Revs & Bens,RT250,Contracted Services,6970,Pension Excess Reclaim Jan 2015,24/02/2015,398357,11653.47,NET,Civica Uk Ltd,10841X,,
Gloucester City Council,23UE,Council Streetcare Team,HI101,Maint Of Grounds - General,3030,"Gloucester Park, replace bird boxes",24/02/2015,398489,223,NET,Greenfields Garden Services Ltd,48130G,,
Gloucester City Council,23UE,Docks Complex - Services,RB100,Cleaning Materials,3600,Cleaning Materials,24/02/2015,398573,119.84,NET,Core Hygiene Ltd,03885P,,
Gloucester City Council,23UE,Folk Museum,LM210,Advertising And Publicity,5702,whats on jan-jun 2015,24/02/2015,398145,299.44,NET,Glide Media,58829J,,
Gloucester City Council,23UE,REDACTED,REDACTED,REDACTED,REDACTED,REDACTED,24/02/2015,REDACTED,395,NET,REDACTED,REDACTED,,
Gloucester City Council,23UE,REDACTED,REDACTED,REDACTED,REDACTED,REDACTED,24/02/2015,REDACTED,390,NET,REDACTED,REDACTED,,
Gloucester City Council,23UE,REDACTED,REDACTED,REDACTED,REDACTED,REDACTED,24/02/2015,REDACTED,350,NET,REDACTED,REDACTED,,
Gloucester City Council,23UE,REDACTED,REDACTED,REDACTED,REDACTED,REDACTED,24/02/2015,REDACTED,364.6,NET,REDACTED,REDACTED,,
Gloucester City Council,23UE,The Arbor,HC501,Catering Provisions -Food,5110,Food,24/02/2015,398666,216.73,NET,3663,55585U,,
Gloucester City Council,23UE,The Arbor,HC501,Catering Provisions -Food,5110,Food,24/02/2015,398670,13.09,NET,Total Produce Gloucester,12645E,,
Gloucester City Council,23UE,The Arbor,HC501,Catering Provisions -Food,5110,Food,24/02/2015,398671,18.62,NET,Total Produce Gloucester,12645E,,
Gloucester City Council,23UE,The Arbor,HC501,Catering Provisions -Food,5110,Food,24/02/2015,398672,12.62,NET,Total Produce Gloucester,12645E,,
Gloucester City Council,23UE,The Arbor,HC501,Catering Provisions -Food,5110,Food,24/02/2015,398673,37.11,NET,Total Produce Gloucester,12645E,,
Gloucester City Council,23UE,The Arbor,HC501,Catering Provisions -Food,5110,Food,24/02/2015,398674,8.06,NET,Total Produce Gloucester,12645E,,
Gloucester City Council,23UE,The Arbor,HC501,Catering Provisions -Food,5110,Food,24/02/2015,398675,42.66,NET,Total Produce Gloucester,12645E,,
Gloucester City Council,23UE,The Arbor,HC501,Catering Provisions -Food,5110,Food,24/02/2015,398676,32.22,NET,Total Produce Gloucester,12645E,,
Gloucester City Council,23UE,The Arbor,HC501,Catering Provisions -Food,5110,Food,24/02/2015,398677,28.23,NET,Total Produce Gloucester,12645E,,
Gloucester City Council,23UE,The Arbor,HC501,Catering Provisions -Food,5110,Food,24/02/2015,398678,24.54,NET,Total Produce Gloucester,12645E,,
Gloucester City Council,23UE,The Arbor,HC501,Catering Provisions -Food,5110,Food,24/02/2015,398679,19.43,NET,Total Produce Gloucester,12645E,,
Gloucester City Council,23UE,The Arbor,HC501,Catering Provisions -Food,5110,Food,24/02/2015,398681,157.7,NET,3663,55585U,,
Gloucester City Council,23UE,The Arbor,HC501,Catering Provisions -Food,5110,Food,24/02/2015,398682,132.14,NET,3663,55585U,,
Gloucester City Council,23UE,The Arbor,HC501,Catering Provisions -Food,5110,Food,24/02/2015,398683,245.43,NET,3663,55585U,,
Gloucester City Council,23UE,The Arbor,HC501,Catering Provisions -Food,5110,Food,24/02/2015,398684,359.69,NET,3663,55585U,,
Gloucester City Council,23UE,The Arbor,HC501,Catering Provisions -Food,5110,Food,24/02/2015,398686,398.83,NET,3663,55585U,,
Gloucester City Council,23UE,The Arbor,HC501,Catering Provisions -Food,5110,Food,24/02/2015,398689,478.97,NET,3663,55585U,,
Gloucester City Council,23UE,The Arbor,HC501,Catering Provisions -Food,5110,Food,24/02/2015,398690,442.13,NET,3663,55585U,,
Gloucester City Council,23UE,The Arbor,HC501,Catering Provisions -Food,5110,Food,24/02/2015,398691,33.12,NET,3663,55585U,,
Gloucester City Council,23UE,The Arbor,HC501,Cleaning Materials,3600,Bleach,24/02/2015,398685,38.47,NET,3663,55585U,,
Gloucester City Council,23UE,The Arbor,HC501,Cleaning Materials,3600,Food,24/02/2015,398688,36.33,NET,3663,55585U,,
Gloucester City Council,23UE,The Arbor,HC501,Other Minor Supplies Services,5590,Plants & Flowers,24/02/2015,398667,36.6,NET,Carols Florist,01274X,,
Gloucester City Council,23UE,The Arbor,HC501,Other Minor Supplies Services,5590,Plants & Flowers,24/02/2015,398668,36.6,NET,Carols Florist,01274X,,
Gloucester City Council,23UE,The Arbor,HC501,Other Minor Supplies Services,5590,Plants & Flowers,24/02/2015,398669,41.6,NET,Carols Florist,01274X,,
Gloucester City Council,23UE,REDACTED,REDACTED,REDACTED,REDACTED,REDACTED,25/02/2015,REDACTED,25.5,NET,REDACTED,REDACTED,,
Gloucester City Council,23UE,REDACTED,REDACTED,REDACTED,REDACTED,REDACTED,25/02/2015,REDACTED,13405.94,NET,REDACTED,REDACTED,,
Gloucester City Council,23UE,Cemeteries,HC300,Maint Of Grounds - General,3030,Grave Markers on a stem,25/02/2015,398640,888,NET,Arkell & Hurcombe,59812T,,
Gloucester City Council,23UE,Cemeteries,HC300,Operational Materials,5070,15 metres,25/02/2015,398664,34.5,NET,Aran Turf,56656L,,
Gloucester City Council,23UE,City Museum And Art Gallery,LM200,Publications For Sale,5064,Various Items,25/02/2015,398372,439.69,NET,The History Press Ltd,07144D,,
Gloucester City Council,23UE,Civica Contract Revs & Bens,RT250,Contracted Services,6970,Pension Excess Reclaim Dec 2014,25/02/2015,398358,12312.7,NET,Civica Uk Ltd,10841X,,
Gloucester City Council,23UE,Contact Centre,RB300,Basic Pay -Admin /Prof Staff,2601,temporary staff,25/02/2015,398755,360,NET,Hbhc Synergy Ltd,13363J,,
Gloucester City Council,23UE,Contact Centre,RB300,Basic Pay -Admin /Prof Staff,2601,temporary staff,25/02/2015,398759,360,NET,Hbhc Synergy Ltd,13363J,,
Gloucester City Council,23UE,Crematorium,HC200,General Repair/Maint Buildings,3000,Batteries,25/02/2015,398757,18.32,NET,Revolution Multimedia,07880L,,
Gloucester City Council,23UE,Crematorium,HC200,Memorial Plaques,5053,Bronze Cast Kerb Plaque,25/02/2015,398650,48,NET,Arkell & Hurcombe,59812T,,
Gloucester City Council,23UE,Crematorium,HC200,Memorial Plaques,5053,Plaques,25/02/2015,398641,300,NET,Arkell & Hurcombe,59812T,,
Gloucester City Council,23UE,Crematorium,HC200,Memorial Plaques,5053,Plaques,25/02/2015,398651,204,NET,Arkell & Hurcombe,59812T,,
Gloucester City Council,23UE,Crematorium,HC200,Memorial Plaques,5053,Plaques,25/02/2015,398652,300,NET,Arkell & Hurcombe,59812T,,
Gloucester City Council,23UE,Docks Complex - Services,RB100,Operational Equipment <5000,5012,Office Furniture,25/02/2015,398656,70,NET,Archer Recycling,11021G,,
Gloucester City Council,23UE,Folk Museum,LM210,Publications For Sale,5064,Various Items,25/02/2015,398372,244.76,NET,The History Press Ltd,07144D,,
Gloucester City Council,23UE,Gl1 Emergency Works,RY160,Contract Payments,0020,gl1,25/02/2015,398000,275,CAP,Goddard Consulting Llp,10598G,,
Gloucester City Council,23UE,REDACTED,REDACTED,REDACTED,REDACTED,REDACTED,25/02/2015,REDACTED,80,NET,REDACTED,REDACTED,,
Gloucester City Council,23UE,Guildhall Events,LA200,Advertising And Publicity,5702,REDACTED,25/02/2015,398659,150,NET,Kilimanjaro Live Ltd,11138N,,
Gloucester City Council,23UE,Guildhall Events,LA200,Advertising And Publicity,5702,REDACTED,25/02/2015,398644,50,NET,Kilimanjaro Live Ltd,11138N,,
Gloucester City Council,23UE,Guildhall Events,LA200,Advertising And Publicity,5702,REDACTED,25/02/2015,398661,100,NET,Kilimanjaro Live Ltd,11138N,,
Gloucester City Council,23UE,Guildhall Events,LA200,Advertising And Publicity,5702,REDACTED,25/02/2015,398747,100,NET,Kilimanjaro Live Ltd,11138N,,
Gloucester City Council,23UE,Guildhall Events,LA200,Advertising And Publicity,5702,REDACTED,25/02/2015,398660,300,NET,Kilimanjaro Live Ltd,11138N,,
Gloucester City Council,23UE,Guildhall Events,LA200,Advertising And Publicity,5702,Display in Forest Review,25/02/2015,398646,395,NET,Forest Of Dean & Wye Valley Review,03989A,,
Gloucester City Council,23UE,REDACTED,REDACTED,REDACTED,REDACTED,REDACTED,25/02/2015,REDACTED,680,NET,REDACTED,REDACTED,,
Gloucester City Council,23UE,REDACTED,REDACTED,REDACTED,REDACTED,REDACTED,25/02/2015,REDACTED,100,NET,REDACTED,REDACTED,,
Gloucester City Council,23UE,Homelessness,CH120,Rent In Advance,5516,RIA & Deposit,25/02/2015,398765,364.6,NET,2 Let Glos Ltd,74622M,,
Gloucester City Council,23UE,Homelessness,CH120,Rent In Advance,5516,RIA & Deposit,25/02/2015,398766,323.08,NET,Surelet,11158G,,
Gloucester City Council,23UE,Homelessness Prevention,CH122,Fees For Services Received,5350,RIA & Deposit,25/02/2015,398765,425,NET,2 Let Glos Ltd,74622M,,
Gloucester City Council,23UE,Homelessness Prevention,CH122,Fees For Services Received,5350,RIA & Deposit,25/02/2015,398766,400,NET,Surelet,11158G,,
Gloucester City Council,23UE,Investment Property,RB500,Repair/Maint Of Fixed Plant,3006,Engineers 13/02/2015,25/02/2015,398758,676.5,NET,Airvent Systems Limited,51073T,,
Gloucester City Council,23UE,Legal Services,RS200,Agency Fees,9105,temporary staff,25/02/2015,398137,628.57,NET,Sellick Partnership Group Ltd,11057C,,
Gloucester City Council,23UE,Legal Services,RS200,Agency Fees,9105,temporary staff,25/02/2015,396967,395.78,NET,Sellick Partnership Group Ltd,11057C,,
Gloucester City Council,23UE,Legal Services,RS200,Agency Fees,9105,temporary staff,25/02/2015,395995,648.33,NET,Sellick Partnership Group Ltd,11057C,,
Gloucester City Council,23UE,Legal Services,RS200,Agency Fees,9105,temporary staff,25/02/2015,397566,639.08,NET,Sellick Partnership Group Ltd,11057C,,
Gloucester City Council,23UE,Legal Services,RS200,Agency Fees,9105,temporary staff,25/02/2015,397673,501.48,NET,Sellick Partnership Group Ltd,11057C,,
Gloucester City Council,23UE,Legal Services,RS200,Basic Pay - Temporary Staff,2751,temporary staff,25/02/2015,398663,1045.97,NET,Venn Group Ltd,04339P,,
Gloucester City Council,23UE,Legal Services,RS200,Basic Pay - Temporary Staff,2751,temporary staff,25/02/2015,397517,1382.9,NET,Venn Group Ltd,04339P,,
Gloucester City Council,23UE,Legal Services,RS200,Basic Pay - Temporary Staff,2751,temporary staff,25/02/2015,397852,1549.93,NET,Venn Group Ltd,04339P,,
Gloucester City Council,23UE,Legal Services,RS200,Basic Pay - Temporary Staff,2751,temporary staff,25/02/2015,398658,1549.93,NET,Venn Group Ltd,04339P,,
Gloucester City Council,23UE,Legal Services,RS200,Basic Pay - Temporary Staff,2751,temporary staff,25/02/2015,398148,395.1,NET,Premiere Employment Group Ltd,55468Z,,
Gloucester City Council,23UE,Pest Control,HD400,Fees For Services Received,5350,Pest Control Visits,25/02/2015,398649,3370.6,NET,Falconry Services Ltd,10692P,,
Gloucester City Council,23UE,Retail Market - Landlord,HM300,Contents Insurance,5700,Gloucester City Maps,25/02/2015,398510,500,NET,Cityscape Maps Limited,05061D,,
Gloucester City Council,23UE,The Arbor,HC501,Catering Provisions -Liquor,5111,Drinks,25/02/2015,398654,55.96,NET,Cellar Supplies Cheltenham Ltd,01563L,,
Gloucester City Council,23UE,The Arbor,HC501,Catering Provisions -Liquor,5111,Lagers,25/02/2015,398653,67.97,NET,Cellar Supplies Cheltenham Ltd,01563L,,
Gloucester City Council,23UE,The Arbor,HC501,Catering Provisions -Liquor,5111,Wines,25/02/2015,398655,38.61,NET,Cellar Supplies Cheltenham Ltd,01563L,,
Gloucester City Council,23UE,Utilities,PT502,Electricity Supply,3110,GROSVENOR HOUSE,25/02/2015,398338,168.79,NET,Npower,03929V,,
Gloucester City Council,23UE,Vehicles,RS140,Fuel,4012,Fuel,25/02/2015,398662,48.28,NET,Allstar Business Solutions Ltd (Arval),06594A,,
Gloucester City Council,23UE,REDACTED,REDACTED,REDACTED,REDACTED,REDACTED,26/02/2015,REDACTED,865,NET,REDACTED,REDACTED,,
Gloucester City Council,23UE,REDACTED,REDACTED,REDACTED,REDACTED,REDACTED,26/02/2015,REDACTED,2320.81,NET,REDACTED,REDACTED,,
Gloucester City Council,23UE,Legal Services,RS200,Basic Pay - Temporary Staff,2751,temporary staff,26/02/2015,398745,472.5,NET,Michael Page International Recruitment Ltd,06601P,,
Gloucester City Council,23UE,REDACTED,REDACTED,REDACTED,REDACTED,REDACTED,26/02/2015,REDACTED,40,NET,REDACTED,REDACTED,,
Gloucester City Council,23UE,Tourism Marketing,LT100,Advertising And Publicity,5702,ADVERT,26/02/2015,398020,250,NET,Cityscape Maps Limited,05061D,,
Gloucester City Council,23UE,Asset Management,RS300,General Repair/Maint Buildings,3000,Parking Post,27/02/2015,398762,59,NET,Ermin Plant Hire & Services Ltd,14150V,,
Gloucester City Council,23UE,Business Transformation & Tech,RT700,Computer Hardware Maintenance,5426,Maintenace Agreement,27/02/2015,396266,159.03,NET,Stanford Marsh Ltd*,51139M,,
Gloucester City Council,23UE,Business Transformation & Tech,RT700,Computer Software Maintenance,5427,Finance Lease Charge,27/02/2015,396189,275,NET,Stanford Marsh Ltd*,51139M,,
Gloucester City Council,23UE,City Museum Catering,LM202,Catering Provisions -Food,5110,Coffee Beans 1KG,27/02/2015,398504,84.25,NET,James Gourmet Coffee Co.,55049A,,
Gloucester City Council,23UE,Client Revs & Bens Contract,RT240,Bailiffs Fees,5368,VAT due on statutory fees,27/02/2015,398715,0,NET,Bristow & Sutor,05450M,,
Gloucester City Council,23UE,Client Revs & Bens Contract,RT240,Bailiffs Fees,5368,VAT due on statutory fees,27/02/2015,398716,340.62,NET,Bristow & Sutor,05450M,,
Gloucester City Council,23UE,Contact Centre,RB300,Basic Pay - Temporary Staff,2751,temporary staff,27/02/2015,398842,731.5,NET,Cps Anystaff Recruitment Ltd,13945D,,
Gloucester City Council,23UE,Countryside Unit,LP201,Contract Cleaning,3620,Cleaning Rangers Office,27/02/2015,398723,130,NET,Cv Fisher Cleaning Services,14907C,,
Gloucester City Council,23UE,Countryside Unit,LP201,Major R And M - Vehicles,4010,Various Items,27/02/2015,398732,97.5,NET,Loxston Groundcare,14309F,,
Gloucester City Council,23UE,Countryside Unit,LP201,Routine R And M - Vehicles,4011,Various Items,27/02/2015,398725,26.13,NET,Ryetec Industrial Equipment Ltd,13772L,,
Gloucester City Council,23UE,Grants To Voluntary Sector,FG100,Members Allocation Fund,7100F,UnMounted Print,27/02/2015,398730,257.35,NET,Vital Signs,56032J,,
Gloucester City Council,23UE,Guildhall Cinema,LA202,Fees For Services Received,5350,Satellite Installation Training,27/02/2015,398750,150,NET,Cinema & Theatre Support Services,14502K,,
Gloucester City Council,23UE,REDACTED,REDACTED,REDACTED,REDACTED,REDACTED,27/02/2015,REDACTED,105.42,NET,REDACTED,REDACTED,,
Gloucester City Council,23UE,REDACTED,REDACTED,REDACTED,REDACTED,REDACTED,27/02/2015,REDACTED,211.41,NET,REDACTED,REDACTED,,
Gloucester City Council,23UE,REDACTED,REDACTED,REDACTED,REDACTED,REDACTED,27/02/2015,REDACTED,41.71,NET,REDACTED,REDACTED,,
Gloucester City Council,23UE,REDACTED,REDACTED,REDACTED,REDACTED,REDACTED,27/02/2015,REDACTED,1000,NET,REDACTED,REDACTED,,
Gloucester City Council,23UE,Head Of Regeneration & Eco Dev,GO102,Catering Provisions -Food,5110,VAT ONLY DUE,27/02/2015,398856,0,NET,Gloucester Cathedral Enterprises Ltd,50228X,,
Gloucester City Council,23UE,REDACTED,REDACTED,REDACTED,REDACTED,REDACTED,27/02/2015,REDACTED,95,NET,REDACTED,REDACTED,,
Gloucester City Council,23UE,REDACTED,REDACTED,REDACTED,REDACTED,REDACTED,27/02/2015,REDACTED,105,NET,REDACTED,REDACTED,,
Gloucester City Council,23UE,REDACTED,REDACTED,REDACTED,REDACTED,REDACTED,27/02/2015,REDACTED,40,NET,REDACTED,REDACTED,,
Gloucester City Council,23UE,REDACTED,REDACTED,REDACTED,REDACTED,REDACTED,27/02/2015,REDACTED,40,NET,REDACTED,REDACTED,,
Gloucester City Council,23UE,REDACTED,REDACTED,REDACTED,REDACTED,REDACTED,27/02/2015,REDACTED,484.6,NET,REDACTED,REDACTED,,
Gloucester City Council,23UE,REDACTED,REDACTED,REDACTED,REDACTED,REDACTED,27/02/2015,REDACTED,525,NET,REDACTED,REDACTED,,
Gloucester City Council,23UE,Legal Services,RS200,Fees For Services Received,5350,Possession Claims,27/02/2015,398835,1470,NET,Hm Courts & Tribunals Service,12497V,,
Gloucester City Council,23UE,Meet & Greet,FP309,Advertising And Publicity,5702,Feature- Around & About,27/02/2015,398748,450,NET,Diversified Business Communications Uk Ltd,15016R,,
Gloucester City Council,23UE,Meet & Greet,FP309,Exhibits And Collections,5038,Day Excursions 17/03/2015,27/02/2015,398738,20,NET,Johnsons (Henley) Ltd,15508M,,
Gloucester City Council,23UE,Rehousing,CH111,Fees For Services Received,5350,medical report,27/02/2015,398720,20.5,NET,Gloucester City Health Centre,02093U,,
Gloucester City Council,23UE,Rehousing,CH111,Fees For Services Received,5350,medical report,27/02/2015,398731,20.5,NET,Gloucester City Health Centre,02093U,,
Gloucester City Council,23UE,Retail Market - Landlord,HM300,Window Cleaning,3610,"Monthly Window Clean, Feb 2015",27/02/2015,398833,140,NET,Cornwall Cleaning Services,14050A,,
Gloucester City Council,23UE,Stationery Services,RS150,Stationery,5302,Xerox,27/02/2015,398722,54.08,NET,Stanford Marsh Ltd*,51139M,,
Gloucester City Council,23UE,Stroud Shared Audit Services,RT301,Other Minor Supplies Services,5590,Course 10/02/2015,27/02/2015,398741,130,NET,Newport City Council,15473F,,
Gloucester City Council,23UE,The Arbor,HC501,Catering Provisions -Food,5110,Food w/e 01/02/2015,27/02/2015,397722,267.03,NET,Janes Pantry,24500W,,
Gloucester City Council,23UE,The Arbor,HC501,Catering Provisions -Food,5110,Orange Juice,27/02/2015,398680,9,NET,Total Produce Gloucester,12645E,,
Gloucester City Council,23UE,The Arbor,HC501,Operational Equipment <5000,5012,Call Out 05/01/2015,27/02/2015,398749,145,NET,Space Catering Equipment Ltd,42828RV,,
Gloucester City Council,23UE,The Arbor,HC501,Operational Equipment <5000,5012,Call out 05/09/2014,27/02/2015,396448,137.88,NET,Space Catering Equipment Ltd,42828RV,,
Gloucester City Council,23UE,Tic Trading,LT110,Materials For Sale,5080,Ball Replica,27/02/2015,398739,117.45,NET,Grays Of Cambridge International Ltd,59499Y,,
Gloucester City Council,23UE,Tourism Marketing,LT100,Advertising And Publicity,5702,Quarter Page Advert,27/02/2015,398740,150,NET,Blueprint Travel Media,14905G,,
Gloucester City Council,23UE,Tree Planting Grant Funded,LY150,Contract Payments,0020,PLANTS,27/02/2015,397290,121.3,CAP,Mount Pleasant Trees,51352K,,
Gloucester City Council,23UE,Business Support,PT250,Routine R And M - Vehicles,4011,Parts,,398804,310,NET,123 Car & Commercial,07651E,,
Gloucester City Council,23UE,Cemeteries,HC300,Clothing,5200,Trousers & jackets,,397663,203.73,NET,REDACTED,REDACTED,,
Gloucester City Council,23UE,City Museum And Art Gallery,LM200,Basic Pay-Building Maint Staff,1301,CREDITED ON 2086132,,397473,185.24,NET,Secom Plc,51471A,,
Gloucester City Council,23UE,City Museum And Art Gallery,LM200,Basic Pay-Building Maint Staff,1301,CREDITED ON 2086133,,397455,1245.46,NET,Secom Plc,51471A,,
Gloucester City Council,23UE,Docks Complex - Telephones,RB120,Telephones And Fax,5410,Charges Dec- Jan 14/15,,395307,13.88,NET,Virgin Media Payments Ltd,09376J,,
Gloucester City Council,23UE,Docks Complex - Telephones,RB120,Telephones And Fax,5410,Charges Dec- Jan 14/15,,395308,80,NET,Virgin Media Payments Ltd,09376J,,
Gloucester City Council,23UE,Docks Complex - Telephones,RB120,Telephones And Fax,5410,Charges Dec-Jan 14/15,,395301,39,NET,Virgin Media Payments Ltd,09376J,,
Gloucester City Council,23UE,Docks Complex - Telephones,RB120,Telephones And Fax,5410,Charges Dec-Jan 14/15,,395306,33,NET,Virgin Media Payments Ltd,09376J,,
Gloucester City Council,23UE,Docks Complex - Telephones,RB120,Telephones And Fax,5410,"Charges Dec- Jan 14/15, Cllr James",,395310,30,NET,Virgin Media Payments Ltd,09376J,,
Gloucester City Council,23UE,Docks Complex - Telephones,RB120,Telephones And Fax,5410,Charges Jan-Feb 2015,,395810,80,NET,Virgin Media Payments Ltd,09376J,,
Gloucester City Council,23UE,Electrical Investigatory Works,RY142,Contract Payments,0020,Inspection of Dry Riser,,391432,60,CAP,A & E Fire Equipment Limited,54289L,,
Gloucester City Council,23UE,Gloucester Guildhall,LA100,Maintenance Of Equipment,5030,Martin MAC500 used,,398648,1000,NET,Peak Hire Limited,07936J,,
Gloucester City Council,23UE,REDACTED,REDACTED,REDACTED,REDACTED,REDACTED,,REDACTED,100,NET,REDACTED,REDACTED,,
Gloucester City Council,23UE,Land Searches,RO300,Fees For Services Received,5350,Land Charges Oct- Dec 2014,,398805,5497.72,NET,Gloucestershire County Council,18650D,,
Gloucester City Council,23UE,Meet & Greet,FP309,Exhibits And Collections,5038,1000W Socket,,398827,161.4,NET,Ges,15517L,,
Gloucester City Council,23UE,Nms Contract,HI102,Contracted Services,6970,Grounds Maintenance 14/15,,398821,5100,NET,Quedgeley Parish Council,48506G,,
Gloucester City Council,23UE,Nms Contract,HI102,Contracted Services,6970,Litter Collection 14/15,,398822,6000,NET,Quedgeley Parish Council,48506G,,
Gloucester City Council,23UE,Stationery Services,RS150,Stationery,5302,Stationery,,398764,29.2,NET,Lyreco Uk Ltd,11746G,,
Gloucester City Council,23UE,Tourism Marketing,LT100,Cleaning Materials,3600,Cleaning Materials,,398828,28.55,NET,Robert Hall Business Equipment Ltd,19925B,,
,,,,,,,,Sum:,2492707.13,,,
